{"text_format":"3","workbook":"xlsx","n_sheets":2,"sheets":["לוח זמנים של כיתה","רשימת שיעורים"],"not_rendered":{"defined_names":17},"read":"whole","date_system":"1900"}

{"sheet":"לוח זמנים של כיתה","index":0,"n_rows":56,"n_cols":9,"rows_kept":56,"merged":[[0,1,1,5],[0,8,1,8]]}
[null,"לוח זמנים של כיתה",{"$nulls":4},"התחלה של לוח הזמנים","מרווח זמן","רשימת שיעורים"]
[{"$nulls":6},"08:00:00","15 דקות"]
[null,"שעה","ראשון","שני","שלישי","רביעי","חמישי","שישי","שבת"]
[null,{"$f":"התחלה_של_לוח_הזמנים","v":"08:00:00"},{"$f":"IFERROR(INDEX(רשימת_שיעורים[],MATCH(SUMPRODUCT((רשימת_שיעורים[יום]=לוח_זמנים_של_כיתה[[#Headers],[ראשון]])*(ROUNDDOWN($B4,10)>=ROUNDDOWN(רשימת_שיעורים[שעת התחלה],10))*($B4<=רשימת_שיעורים[שעת סיום]),רשימת_שיעורים[ייחודי]),רשימת_שיעורים[ייחודי],0),2),0)","v":0},{"$f":"IFERROR(INDEX(רשימת_שיעורים[],MATCH(SUMPRODUCT((רשימת_שיעורים[יום]=לוח_זמנים_של_כיתה[[#Headers],[שני]])*(ROUNDDOWN($B4,10)>=ROUNDDOWN(רשימת_שיעורים[שעת התחלה],10))*($B4<=רשימת_שיעורים[שעת סיום]),רשימת_שיעורים[ייחודי]),רשימת_שיעורים[ייחודי],0),2),0)","v":0},{"$f":"IFERROR(INDEX(רשימת_שיעורים[],MATCH(SUMPRODUCT((רשימת_שיעורים[יום]=לוח_זמנים_של_כיתה[[#Headers],[שלישי]])*(ROUNDDOWN($B4,10)>=ROUNDDOWN(רשימת_שיעורים[שעת התחלה],10))*($B4<=רשימת_שיעורים[שעת סיום]),רשימת_שיעורים[ייחודי]),רשימת_שיעורים[ייחודי],0),2),0)","v":0},{"$f":"IFERROR(INDEX(רשימת_שיעורים[],MATCH(SUMPRODUCT((רשימת_שיעורים[יום]=לוח_זמנים_של_כיתה[[#Headers],[רביעי]])*(ROUNDDOWN($B4,10)>=ROUNDDOWN(רשימת_שיעורים[שעת התחלה],10))*($B4<=רשימת_שיעורים[שעת סיום]),רשימת_שיעורים[ייחודי]),רשימת_שיעורים[ייחודי],0),2),0)","v":0},{"$f":"IFERROR(INDEX(רשימת_שיעורים[],MATCH(SUMPRODUCT((רשימת_שיעורים[יום]=לוח_זמנים_של_כיתה[[#Headers],[חמישי]])*(ROUNDDOWN($B4,10)>=ROUNDDOWN(רשימת_שיעורים[שעת התחלה],10))*($B4<=רשימת_שיעורים[שעת סיום]),רשימת_שיעורים[ייחודי]),רשימת_שיעורים[ייחודי],0),2),0)","v":0},{"$f":"IFERROR(INDEX(רשימת_שיעורים[],MATCH(SUMPRODUCT((רשימת_שיעורים[יום]=לוח_זמנים_של_כיתה[[#Headers],[שישי]])*(ROUNDDOWN($B4,10)>=ROUNDDOWN(רשימת_שיעורים[שעת התחלה],10))*($B4<=רשימת_שיעורים[שעת סיום]),רשימת_שיעורים[ייחודי]),רשימת_שיעורים[ייחודי],0),2),0)","v":0},{"$f":"IFERROR(INDEX(רשימת_שיעורים[],MATCH(SUMPRODUCT((רשימת_שיעורים[יום]=לוח_זמנים_של_כיתה[[#Headers],[שבת]])*(ROUNDDOWN($B4,10)>=ROUNDDOWN(רשימת_שיעורים[שעת התחלה],10))*($B4<=רשימת_שיעורים[שעת סיום]),רשימת_שיעורים[ייחודי]),רשימת_שיעורים[ייחודי],0),2),0)","v":0}]
[null,{"$f":"B4+הפרש_קבוע","v":"08:15:00"},{"$f":"IFERROR(INDEX(רשימת_שיעורים[],MATCH(SUMPRODUCT((רשימת_שיעורים[יום]=לוח_זמנים_של_כיתה[[#Headers],[ראשון]])*(ROUNDDOWN($B5,10)>=ROUNDDOWN(רשימת_שיעורים[שעת התחלה],10))*($B5<=רשימת_שיעורים[שעת סיום]),רשימת_שיעורים[ייחודי]),רשימת_שיעורים[ייחודי],0),2),0)","v":0},{"$f":"IFERROR(INDEX(רשימת_שיעורים[],MATCH(SUMPRODUCT((רשימת_שיעורים[יום]=לוח_זמנים_של_כיתה[[#Headers],[שני]])*(ROUNDDOWN($B5,10)>=ROUNDDOWN(רשימת_שיעורים[שעת התחלה],10))*($B5<=רשימת_שיעורים[שעת סיום]),רשימת_שיעורים[ייחודי]),רשימת_שיעורים[ייחודי],0),2),0)","v":"MTH-113"},{"$f":"IFERROR(INDEX(רשימת_שיעורים[],MATCH(SUMPRODUCT((רשימת_שיעורים[יום]=לוח_זמנים_של_כיתה[[#Headers],[שלישי]])*(ROUNDDOWN($B5,10)>=ROUNDDOWN(רשימת_שיעורים[שעת התחלה],10))*($B5<=רשימת_שיעורים[שעת סיום]),רשימת_שיעורים[ייחודי]),רשימת_שיעורים[ייחודי],0),2),0)","v":0},{"$f":"IFERROR(INDEX(רשימת_שיעורים[],MATCH(SUMPRODUCT((רשימת_שיעורים[יום]=לוח_זמנים_של_כיתה[[#Headers],[רביעי]])*(ROUNDDOWN($B5,10)>=ROUNDDOWN(רשימת_שיעורים[שעת התחלה],10))*($B5<=רשימת_שיעורים[שעת סיום]),רשימת_שיעורים[ייחודי]),רשימת_שיעורים[ייחודי],0),2),0)","v":"MTH-113"},{"$f":"IFERROR(INDEX(רשימת_שיעורים[],MATCH(SUMPRODUCT((רשימת_שיעורים[יום]=לוח_זמנים_של_כיתה[[#Headers],[חמישי]])*(ROUNDDOWN($B5,10)>=ROUNDDOWN(רשימת_שיעורים[שעת התחלה],10))*($B5<=רשימת_שיעורים[שעת סיום]),רשימת_שיעורים[ייחודי]),רשימת_שיעורים[ייחודי],0),2),0)","v":0},{"$f":"IFERROR(INDEX(רשימת_שיעורים[],MATCH(SUMPRODUCT((רשימת_שיעורים[יום]=לוח_זמנים_של_כיתה[[#Headers],[שישי]])*(ROUNDDOWN($B5,10)>=ROUNDDOWN(רשימת_שיעורים[שעת התחלה],10))*($B5<=רשימת_שיעורים[שעת סיום]),רשימת_שיעורים[ייחודי]),רשימת_שיעורים[ייחודי],0),2),0)","v":"MTH-113"},{"$f":"IFERROR(INDEX(רשימת_שיעורים[],MATCH(SUMPRODUCT((רשימת_שיעורים[יום]=לוח_זמנים_של_כיתה[[#Headers],[שבת]])*(ROUNDDOWN($B5,10)>=ROUNDDOWN(רשימת_שיעורים[שעת התחלה],10))*($B5<=רשימת_שיעורים[שעת סיום]),רשימת_שיעורים[ייחודי]),רשימת_שיעורים[ייחודי],0),2),0)","v":0}]
[null,"08:30:00",{"$f":"IFERROR(INDEX(רשימת_שיעורים[],MATCH(SUMPRODUCT((רשימת_שיעורים[יום]=לוח_זמנים_של_כיתה[[#Headers],[ראשון]])*(ROUNDDOWN($B6,10)>=ROUNDDOWN(רשימת_שיעורים[שעת התחלה],10))*($B6<=רשימת_שיעורים[שעת סיום]),רשימת_שיעורים[ייחודי]),רשימת_שיעורים[ייחודי],0),2),0)","v":0},{"$f":"IFERROR(INDEX(רשימת_שיעורים[],MATCH(SUMPRODUCT((רשימת_שיעורים[יום]=לוח_זמנים_של_כיתה[[#Headers],[שני]])*(ROUNDDOWN($B6,10)>=ROUNDDOWN(רשימת_שיעורים[שעת התחלה],10))*($B6<=רשימת_שיעורים[שעת סיום]),רשימת_שיעורים[ייחודי]),רשימת_שיעורים[ייחודי],0),2),0)","v":"MTH-113"},{"$f":"IFERROR(INDEX(רשימת_שיעורים[],MATCH(SUMPRODUCT((רשימת_שיעורים[יום]=לוח_זמנים_של_כיתה[[#Headers],[שלישי]])*(ROUNDDOWN($B6,10)>=ROUNDDOWN(רשימת_שיעורים[שעת התחלה],10))*($B6<=רשימת_שיעורים[שעת סיום]),רשימת_שיעורים[ייחודי]),רשימת_שיעורים[ייחודי],0),2),0)","v":0},{"$f":"IFERROR(INDEX(רשימת_שיעורים[],MATCH(SUMPRODUCT((רשימת_שיעורים[יום]=לוח_זמנים_של_כיתה[[#Headers],[רביעי]])*(ROUNDDOWN($B6,10)>=ROUNDDOWN(רשימת_שיעורים[שעת התחלה],10))*($B6<=רשימת_שיעורים[שעת סיום]),רשימת_שיעורים[ייחודי]),רשימת_שיעורים[ייחודי],0),2),0)","v":"MTH-113"},{"$f":"IFERROR(INDEX(רשימת_שיעורים[],MATCH(SUMPRODUCT((רשימת_שיעורים[יום]=לוח_זמנים_של_כיתה[[#Headers],[חמישי]])*(ROUNDDOWN($B6,10)>=ROUNDDOWN(רשימת_שיעורים[שעת התחלה],10))*($B6<=רשימת_שיעורים[שעת סיום]),רשימת_שיעורים[ייחודי]),רשימת_שיעורים[ייחודי],0),2),0)","v":0},{"$f":"IFERROR(INDEX(רשימת_שיעורים[],MATCH(SUMPRODUCT((רשימת_שיעורים[יום]=לוח_זמנים_של_כיתה[[#Headers],[שישי]])*(ROUNDDOWN($B6,10)>=ROUNDDOWN(רשימת_שיעורים[שעת התחלה],10))*($B6<=רשימת_שיעורים[שעת סיום]),רשימת_שיעורים[ייחודי]),רשימת_שיעורים[ייחודי],0),2),0)","v":"MTH-113"},{"$f":"IFERROR(INDEX(רשימת_שיעורים[],MATCH(SUMPRODUCT((רשימת_שיעורים[יום]=לוח_זמנים_של_כיתה[[#Headers],[שבת]])*(ROUNDDOWN($B6,10)>=ROUNDDOWN(רשימת_שיעורים[שעת התחלה],10))*($B6<=רשימת_שיעורים[שעת סיום]),רשימת_שיעורים[ייחודי]),רשימת_שיעורים[ייחודי],0),2),0)","v":0}]
[null,"08:45:00",{"$f":"IFERROR(INDEX(רשימת_שיעורים[],MATCH(SUMPRODUCT((רשימת_שיעורים[יום]=לוח_זמנים_של_כיתה[[#Headers],[ראשון]])*(ROUNDDOWN($B7,10)>=ROUNDDOWN(רשימת_שיעורים[שעת התחלה],10))*($B7<=רשימת_שיעורים[שעת סיום]),רשימת_שיעורים[ייחודי]),רשימת_שיעורים[ייחודי],0),2),0)","v":0},{"$f":"IFERROR(INDEX(רשימת_שיעורים[],MATCH(SUMPRODUCT((רשימת_שיעורים[יום]=לוח_זמנים_של_כיתה[[#Headers],[שני]])*(ROUNDDOWN($B7,10)>=ROUNDDOWN(רשימת_שיעורים[שעת התחלה],10))*($B7<=רשימת_שיעורים[שעת סיום]),רשימת_שיעורים[ייחודי]),רשימת_שיעורים[ייחודי],0),2),0)","v":"MTH-113"},{"$f":"IFERROR(INDEX(רשימת_שיעורים[],MATCH(SUMPRODUCT((רשימת_שיעורים[יום]=לוח_זמנים_של_כיתה[[#Headers],[שלישי]])*(ROUNDDOWN($B7,10)>=ROUNDDOWN(רשימת_שיעורים[שעת התחלה],10))*($B7<=רשימת_שיעורים[שעת סיום]),רשימת_שיעורים[ייחודי]),רשימת_שיעורים[ייחודי],0),2),0)","v":0},{"$f":"IFERROR(INDEX(רשימת_שיעורים[],MATCH(SUMPRODUCT((רשימת_שיעורים[יום]=לוח_זמנים_של_כיתה[[#Headers],[רביעי]])*(ROUNDDOWN($B7,10)>=ROUNDDOWN(רשימת_שיעורים[שעת התחלה],10))*($B7<=רשימת_שיעורים[שעת סיום]),רשימת_שיעורים[ייחודי]),רשימת_שיעורים[ייחודי],0),2),0)","v":"MTH-113"},{"$f":"IFERROR(INDEX(רשימת_שיעורים[],MATCH(SUMPRODUCT((רשימת_שיעורים[יום]=לוח_זמנים_של_כיתה[[#Headers],[חמישי]])*(ROUNDDOWN($B7,10)>=ROUNDDOWN(רשימת_שיעורים[שעת התחלה],10))*($B7<=רשימת_שיעורים[שעת סיום]),רשימת_שיעורים[ייחודי]),רשימת_שיעורים[ייחודי],0),2),0)","v":0},{"$f":"IFERROR(INDEX(רשימת_שיעורים[],MATCH(SUMPRODUCT((רשימת_שיעורים[יום]=לוח_זמנים_של_כיתה[[#Headers],[שישי]])*(ROUNDDOWN($B7,10)>=ROUNDDOWN(רשימת_שיעורים[שעת התחלה],10))*($B7<=רשימת_שיעורים[שעת סיום]),רשימת_שיעורים[ייחודי]),רשימת_שיעורים[ייחודי],0),2),0)","v":"MTH-113"},{"$f":"IFERROR(INDEX(רשימת_שיעורים[],MATCH(SUMPRODUCT((רשימת_שיעורים[יום]=לוח_זמנים_של_כיתה[[#Headers],[שבת]])*(ROUNDDOWN($B7,10)>=ROUNDDOWN(רשימת_שיעורים[שעת התחלה],10))*($B7<=רשימת_שיעורים[שעת סיום]),רשימת_שיעורים[ייחודי]),רשימת_שיעורים[ייחודי],0),2),0)","v":0}]
[null,"09:00:00",{"$f":"IFERROR(INDEX(רשימת_שיעורים[],MATCH(SUMPRODUCT((רשימת_שיעורים[יום]=לוח_זמנים_של_כיתה[[#Headers],[ראשון]])*(ROUNDDOWN($B8,10)>=ROUNDDOWN(רשימת_שיעורים[שעת התחלה],10))*($B8<=רשימת_שיעורים[שעת סיום]),רשימת_שיעורים[ייחודי]),רשימת_שיעורים[ייחודי],0),2),0)","v":0},{"$f":"IFERROR(INDEX(רשימת_שיעורים[],MATCH(SUMPRODUCT((רשימת_שיעורים[יום]=לוח_זמנים_של_כיתה[[#Headers],[שני]])*(ROUNDDOWN($B8,10)>=ROUNDDOWN(רשימת_שיעורים[שעת התחלה],10))*($B8<=רשימת_שיעורים[שעת סיום]),רשימת_שיעורים[ייחודי]),רשימת_שיעורים[ייחודי],0),2),0)","v":"MTH-113"},{"$f":"IFERROR(INDEX(רשימת_שיעורים[],MATCH(SUMPRODUCT((רשימת_שיעורים[יום]=לוח_זמנים_של_כיתה[[#Headers],[שלישי]])*(ROUNDDOWN($B8,10)>=ROUNDDOWN(רשימת_שיעורים[שעת התחלה],10))*($B8<=רשימת_שיעורים[שעת סיום]),רשימת_שיעורים[ייחודי]),רשימת_שיעורים[ייחודי],0),2),0)","v":0},{"$f":"IFERROR(INDEX(רשימת_שיעורים[],MATCH(SUMPRODUCT((רשימת_שיעורים[יום]=לוח_זמנים_של_כיתה[[#Headers],[רביעי]])*(ROUNDDOWN($B8,10)>=ROUNDDOWN(רשימת_שיעורים[שעת התחלה],10))*($B8<=רשימת_שיעורים[שעת סיום]),רשימת_שיעורים[ייחודי]),רשימת_שיעורים[ייחודי],0),2),0)","v":"MTH-113"},{"$f":"IFERROR(INDEX(רשימת_שיעורים[],MATCH(SUMPRODUCT((רשימת_שיעורים[יום]=לוח_זמנים_של_כיתה[[#Headers],[חמישי]])*(ROUNDDOWN($B8,10)>=ROUNDDOWN(רשימת_שיעורים[שעת התחלה],10))*($B8<=רשימת_שיעורים[שעת סיום]),רשימת_שיעורים[ייחודי]),רשימת_שיעורים[ייחודי],0),2),0)","v":0},{"$f":"IFERROR(INDEX(רשימת_שיעורים[],MATCH(SUMPRODUCT((רשימת_שיעורים[יום]=לוח_זמנים_של_כיתה[[#Headers],[שישי]])*(ROUNDDOWN($B8,10)>=ROUNDDOWN(רשימת_שיעורים[שעת התחלה],10))*($B8<=רשימת_שיעורים[שעת סיום]),רשימת_שיעורים[ייחודי]),רשימת_שיעורים[ייחודי],0),2),0)","v":"MTH-113"},{"$f":"IFERROR(INDEX(רשימת_שיעורים[],MATCH(SUMPRODUCT((רשימת_שיעורים[יום]=לוח_זמנים_של_כיתה[[#Headers],[שבת]])*(ROUNDDOWN($B8,10)>=ROUNDDOWN(רשימת_שיעורים[שעת התחלה],10))*($B8<=רשימת_שיעורים[שעת סיום]),רשימת_שיעורים[ייחודי]),רשימת_שיעורים[ייחודי],0),2),0)","v":0}]
[null,"09:15:00",{"$f":"IFERROR(INDEX(רשימת_שיעורים[],MATCH(SUMPRODUCT((רשימת_שיעורים[יום]=לוח_זמנים_של_כיתה[[#Headers],[ראשון]])*(ROUNDDOWN($B9,10)>=ROUNDDOWN(רשימת_שיעורים[שעת התחלה],10))*($B9<=רשימת_שיעורים[שעת סיום]),רשימת_שיעורים[ייחודי]),רשימת_שיעורים[ייחודי],0),2),0)","v":0},{"$f":"IFERROR(INDEX(רשימת_שיעורים[],MATCH(SUMPRODUCT((רשימת_שיעורים[יום]=לוח_זמנים_של_כיתה[[#Headers],[שני]])*(ROUNDDOWN($B9,10)>=ROUNDDOWN(רשימת_שיעורים[שעת התחלה],10))*($B9<=רשימת_שיעורים[שעת סיום]),רשימת_שיעורים[ייחודי]),רשימת_שיעורים[ייחודי],0),2),0)","v":"MTH-113"},{"$f":"IFERROR(INDEX(רשימת_שיעורים[],MATCH(SUMPRODUCT((רשימת_שיעורים[יום]=לוח_זמנים_של_כיתה[[#Headers],[שלישי]])*(ROUNDDOWN($B9,10)>=ROUNDDOWN(רשימת_שיעורים[שעת התחלה],10))*($B9<=רשימת_שיעורים[שעת סיום]),רשימת_שיעורים[ייחודי]),רשימת_שיעורים[ייחודי],0),2),0)","v":0},{"$f":"IFERROR(INDEX(רשימת_שיעורים[],MATCH(SUMPRODUCT((רשימת_שיעורים[יום]=לוח_זמנים_של_כיתה[[#Headers],[רביעי]])*(ROUNDDOWN($B9,10)>=ROUNDDOWN(רשימת_שיעורים[שעת התחלה],10))*($B9<=רשימת_שיעורים[שעת סיום]),רשימת_שיעורים[ייחודי]),רשימת_שיעורים[ייחודי],0),2),0)","v":"MTH-113"},{"$f":"IFERROR(INDEX(רשימת_שיעורים[],MATCH(SUMPRODUCT((רשימת_שיעורים[יום]=לוח_זמנים_של_כיתה[[#Headers],[חמישי]])*(ROUNDDOWN($B9,10)>=ROUNDDOWN(רשימת_שיעורים[שעת התחלה],10))*($B9<=רשימת_שיעורים[שעת סיום]),רשימת_שיעורים[ייחודי]),רשימת_שיעורים[ייחודי],0),2),0)","v":0},{"$f":"IFERROR(INDEX(רשימת_שיעורים[],MATCH(SUMPRODUCT((רשימת_שיעורים[יום]=לוח_זמנים_של_כיתה[[#Headers],[שישי]])*(ROUNDDOWN($B9,10)>=ROUNDDOWN(רשימת_שיעורים[שעת התחלה],10))*($B9<=רשימת_שיעורים[שעת סיום]),רשימת_שיעורים[ייחודי]),רשימת_שיעורים[ייחודי],0),2),0)","v":"MTH-113"},{"$f":"IFERROR(INDEX(רשימת_שיעורים[],MATCH(SUMPRODUCT((רשימת_שיעורים[יום]=לוח_זמנים_של_כיתה[[#Headers],[שבת]])*(ROUNDDOWN($B9,10)>=ROUNDDOWN(רשימת_שיעורים[שעת התחלה],10))*($B9<=רשימת_שיעורים[שעת סיום]),רשימת_שיעורים[ייחודי]),רשימת_שיעורים[ייחודי],0),2),0)","v":0}]
[null,"09:30:00",{"$f":"IFERROR(INDEX(רשימת_שיעורים[],MATCH(SUMPRODUCT((רשימת_שיעורים[יום]=לוח_זמנים_של_כיתה[[#Headers],[ראשון]])*(ROUNDDOWN($B10,10)>=ROUNDDOWN(רשימת_שיעורים[שעת התחלה],10))*($B10<=רשימת_שיעורים[שעת סיום]),רשימת_שיעורים[ייחודי]),רשימת_שיעורים[ייחודי],0),2),0)","v":0},{"$f":"IFERROR(INDEX(רשימת_שיעורים[],MATCH(SUMPRODUCT((רשימת_שיעורים[יום]=לוח_זמנים_של_כיתה[[#Headers],[שני]])*(ROUNDDOWN($B10,10)>=ROUNDDOWN(רשימת_שיעורים[שעת התחלה],10))*($B10<=רשימת_שיעורים[שעת סיום]),רשימת_שיעורים[ייחודי]),רשימת_שיעורים[ייחודי],0),2),0)","v":0},{"$f":"IFERROR(INDEX(רשימת_שיעורים[],MATCH(SUMPRODUCT((רשימת_שיעורים[יום]=לוח_זמנים_של_כיתה[[#Headers],[שלישי]])*(ROUNDDOWN($B10,10)>=ROUNDDOWN(רשימת_שיעורים[שעת התחלה],10))*($B10<=רשימת_שיעורים[שעת סיום]),רשימת_שיעורים[ייחודי]),רשימת_שיעורים[ייחודי],0),2),0)","v":0},{"$f":"IFERROR(INDEX(רשימת_שיעורים[],MATCH(SUMPRODUCT((רשימת_שיעורים[יום]=לוח_זמנים_של_כיתה[[#Headers],[רביעי]])*(ROUNDDOWN($B10,10)>=ROUNDDOWN(רשימת_שיעורים[שעת התחלה],10))*($B10<=רשימת_שיעורים[שעת סיום]),רשימת_שיעורים[ייחודי]),רשימת_שיעורים[ייחודי],0),2),0)","v":0},{"$f":"IFERROR(INDEX(רשימת_שיעורים[],MATCH(SUMPRODUCT((רשימת_שיעורים[יום]=לוח_זמנים_של_כיתה[[#Headers],[חמישי]])*(ROUNDDOWN($B10,10)>=ROUNDDOWN(רשימת_שיעורים[שעת התחלה],10))*($B10<=רשימת_שיעורים[שעת סיום]),רשימת_שיעורים[ייחודי]),רשימת_שיעורים[ייחודי],0),2),0)","v":0},{"$f":"IFERROR(INDEX(רשימת_שיעורים[],MATCH(SUMPRODUCT((רשימת_שיעורים[יום]=לוח_זמנים_של_כיתה[[#Headers],[שישי]])*(ROUNDDOWN($B10,10)>=ROUNDDOWN(רשימת_שיעורים[שעת התחלה],10))*($B10<=רשימת_שיעורים[שעת סיום]),רשימת_שיעורים[ייחודי]),רשימת_שיעורים[ייחודי],0),2),0)","v":0},{"$f":"IFERROR(INDEX(רשימת_שיעורים[],MATCH(SUMPRODUCT((רשימת_שיעורים[יום]=לוח_זמנים_של_כיתה[[#Headers],[שבת]])*(ROUNDDOWN($B10,10)>=ROUNDDOWN(רשימת_שיעורים[שעת התחלה],10))*($B10<=רשימת_שיעורים[שעת סיום]),רשימת_שיעורים[ייחודי]),רשימת_שיעורים[ייחודי],0),2),0)","v":0}]
[null,"09:45:00",{"$f":"IFERROR(INDEX(רשימת_שיעורים[],MATCH(SUMPRODUCT((רשימת_שיעורים[יום]=לוח_זמנים_של_כיתה[[#Headers],[ראשון]])*(ROUNDDOWN($B11,10)>=ROUNDDOWN(רשימת_שיעורים[שעת התחלה],10))*($B11<=רשימת_שיעורים[שעת סיום]),רשימת_שיעורים[ייחודי]),רשימת_שיעורים[ייחודי],0),2),0)","v":0},{"$f":"IFERROR(INDEX(רשימת_שיעורים[],MATCH(SUMPRODUCT((רשימת_שיעורים[יום]=לוח_זמנים_של_כיתה[[#Headers],[שני]])*(ROUNDDOWN($B11,10)>=ROUNDDOWN(רשימת_שיעורים[שעת התחלה],10))*($B11<=רשימת_שיעורים[שעת סיום]),רשימת_שיעורים[ייחודי]),רשימת_שיעורים[ייחודי],0),2),0)","v":0},{"$f":"IFERROR(INDEX(רשימת_שיעורים[],MATCH(SUMPRODUCT((רשימת_שיעורים[יום]=לוח_זמנים_של_כיתה[[#Headers],[שלישי]])*(ROUNDDOWN($B11,10)>=ROUNDDOWN(רשימת_שיעורים[שעת התחלה],10))*($B11<=רשימת_שיעורים[שעת סיום]),רשימת_שיעורים[ייחודי]),רשימת_שיעורים[ייחודי],0),2),0)","v":0},{"$f":"IFERROR(INDEX(רשימת_שיעורים[],MATCH(SUMPRODUCT((רשימת_שיעורים[יום]=לוח_זמנים_של_כיתה[[#Headers],[רביעי]])*(ROUNDDOWN($B11,10)>=ROUNDDOWN(רשימת_שיעורים[שעת התחלה],10))*($B11<=רשימת_שיעורים[שעת סיום]),רשימת_שיעורים[ייחודי]),רשימת_שיעורים[ייחודי],0),2),0)","v":0},{"$f":"IFERROR(INDEX(רשימת_שיעורים[],MATCH(SUMPRODUCT((רשימת_שיעורים[יום]=לוח_זמנים_של_כיתה[[#Headers],[חמישי]])*(ROUNDDOWN($B11,10)>=ROUNDDOWN(רשימת_שיעורים[שעת התחלה],10))*($B11<=רשימת_שיעורים[שעת סיום]),רשימת_שיעורים[ייחודי]),רשימת_שיעורים[ייחודי],0),2),0)","v":0},{"$f":"IFERROR(INDEX(רשימת_שיעורים[],MATCH(SUMPRODUCT((רשימת_שיעורים[יום]=לוח_זמנים_של_כיתה[[#Headers],[שישי]])*(ROUNDDOWN($B11,10)>=ROUNDDOWN(רשימת_שיעורים[שעת התחלה],10))*($B11<=רשימת_שיעורים[שעת סיום]),רשימת_שיעורים[ייחודי]),רשימת_שיעורים[ייחודי],0),2),0)","v":0},{"$f":"IFERROR(INDEX(רשימת_שיעורים[],MATCH(SUMPRODUCT((רשימת_שיעורים[יום]=לוח_זמנים_של_כיתה[[#Headers],[שבת]])*(ROUNDDOWN($B11,10)>=ROUNDDOWN(רשימת_שיעורים[שעת התחלה],10))*($B11<=רשימת_שיעורים[שעת סיום]),רשימת_שיעורים[ייחודי]),רשימת_שיעורים[ייחודי],0),2),0)","v":0}]
[null,"10:00:00",{"$f":"IFERROR(INDEX(רשימת_שיעורים[],MATCH(SUMPRODUCT((רשימת_שיעורים[יום]=לוח_זמנים_של_כיתה[[#Headers],[ראשון]])*(ROUNDDOWN($B12,10)>=ROUNDDOWN(רשימת_שיעורים[שעת התחלה],10))*($B12<=רשימת_שיעורים[שעת סיום]),רשימת_שיעורים[ייחודי]),רשימת_שיעורים[ייחודי],0),2),0)","v":0},{"$f":"IFERROR(INDEX(רשימת_שיעורים[],MATCH(SUMPRODUCT((רשימת_שיעורים[יום]=לוח_זמנים_של_כיתה[[#Headers],[שני]])*(ROUNDDOWN($B12,10)>=ROUNDDOWN(רשימת_שיעורים[שעת התחלה],10))*($B12<=רשימת_שיעורים[שעת סיום]),רשימת_שיעורים[ייחודי]),רשימת_שיעורים[ייחודי],0),2),0)","v":0},{"$f":"IFERROR(INDEX(רשימת_שיעורים[],MATCH(SUMPRODUCT((רשימת_שיעורים[יום]=לוח_זמנים_של_כיתה[[#Headers],[שלישי]])*(ROUNDDOWN($B12,10)>=ROUNDDOWN(רשימת_שיעורים[שעת התחלה],10))*($B12<=רשימת_שיעורים[שעת סיום]),רשימת_שיעורים[ייחודי]),רשימת_שיעורים[ייחודי],0),2),0)","v":0},{"$f":"IFERROR(INDEX(רשימת_שיעורים[],MATCH(SUMPRODUCT((רשימת_שיעורים[יום]=לוח_זמנים_של_כיתה[[#Headers],[רביעי]])*(ROUNDDOWN($B12,10)>=ROUNDDOWN(רשימת_שיעורים[שעת התחלה],10))*($B12<=רשימת_שיעורים[שעת סיום]),רשימת_שיעורים[ייחודי]),רשימת_שיעורים[ייחודי],0),2),0)","v":0},{"$f":"IFERROR(INDEX(רשימת_שיעורים[],MATCH(SUMPRODUCT((רשימת_שיעורים[יום]=לוח_זמנים_של_כיתה[[#Headers],[חמישי]])*(ROUNDDOWN($B12,10)>=ROUNDDOWN(רשימת_שיעורים[שעת התחלה],10))*($B12<=רשימת_שיעורים[שעת סיום]),רשימת_שיעורים[ייחודי]),רשימת_שיעורים[ייחודי],0),2),0)","v":0},{"$f":"IFERROR(INDEX(רשימת_שיעורים[],MATCH(SUMPRODUCT((רשימת_שיעורים[יום]=לוח_זמנים_של_כיתה[[#Headers],[שישי]])*(ROUNDDOWN($B12,10)>=ROUNDDOWN(רשימת_שיעורים[שעת התחלה],10))*($B12<=רשימת_שיעורים[שעת סיום]),רשימת_שיעורים[ייחודי]),רשימת_שיעורים[ייחודי],0),2),0)","v":0},{"$f":"IFERROR(INDEX(רשימת_שיעורים[],MATCH(SUMPRODUCT((רשימת_שיעורים[יום]=לוח_זמנים_של_כיתה[[#Headers],[שבת]])*(ROUNDDOWN($B12,10)>=ROUNDDOWN(רשימת_שיעורים[שעת התחלה],10))*($B12<=רשימת_שיעורים[שעת סיום]),רשימת_שיעורים[ייחודי]),רשימת_שיעורים[ייחודי],0),2),0)","v":0}]
[null,"10:15:00",{"$f":"IFERROR(INDEX(רשימת_שיעורים[],MATCH(SUMPRODUCT((רשימת_שיעורים[יום]=לוח_זמנים_של_כיתה[[#Headers],[ראשון]])*(ROUNDDOWN($B13,10)>=ROUNDDOWN(רשימת_שיעורים[שעת התחלה],10))*($B13<=רשימת_שיעורים[שעת סיום]),רשימת_שיעורים[ייחודי]),רשימת_שיעורים[ייחודי],0),2),0)","v":0},{"$f":"IFERROR(INDEX(רשימת_שיעורים[],MATCH(SUMPRODUCT((רשימת_שיעורים[יום]=לוח_זמנים_של_כיתה[[#Headers],[שני]])*(ROUNDDOWN($B13,10)>=ROUNDDOWN(רשימת_שיעורים[שעת התחלה],10))*($B13<=רשימת_שיעורים[שעת סיום]),רשימת_שיעורים[ייחודי]),רשימת_שיעורים[ייחודי],0),2),0)","v":0},{"$f":"IFERROR(INDEX(רשימת_שיעורים[],MATCH(SUMPRODUCT((רשימת_שיעורים[יום]=לוח_זמנים_של_כיתה[[#Headers],[שלישי]])*(ROUNDDOWN($B13,10)>=ROUNDDOWN(רשימת_שיעורים[שעת התחלה],10))*($B13<=רשימת_שיעורים[שעת סיום]),רשימת_שיעורים[ייחודי]),רשימת_שיעורים[ייחודי],0),2),0)","v":0},{"$f":"IFERROR(INDEX(רשימת_שיעורים[],MATCH(SUMPRODUCT((רשימת_שיעורים[יום]=לוח_זמנים_של_כיתה[[#Headers],[רביעי]])*(ROUNDDOWN($B13,10)>=ROUNDDOWN(רשימת_שיעורים[שעת התחלה],10))*($B13<=רשימת_שיעורים[שעת סיום]),רשימת_שיעורים[ייחודי]),רשימת_שיעורים[ייחודי],0),2),0)","v":0},{"$f":"IFERROR(INDEX(רשימת_שיעורים[],MATCH(SUMPRODUCT((רשימת_שיעורים[יום]=לוח_זמנים_של_כיתה[[#Headers],[חמישי]])*(ROUNDDOWN($B13,10)>=ROUNDDOWN(רשימת_שיעורים[שעת התחלה],10))*($B13<=רשימת_שיעורים[שעת סיום]),רשימת_שיעורים[ייחודי]),רשימת_שיעורים[ייחודי],0),2),0)","v":0},{"$f":"IFERROR(INDEX(רשימת_שיעורים[],MATCH(SUMPRODUCT((רשימת_שיעורים[יום]=לוח_זמנים_של_כיתה[[#Headers],[שישי]])*(ROUNDDOWN($B13,10)>=ROUNDDOWN(רשימת_שיעורים[שעת התחלה],10))*($B13<=רשימת_שיעורים[שעת סיום]),רשימת_שיעורים[ייחודי]),רשימת_שיעורים[ייחודי],0),2),0)","v":0},{"$f":"IFERROR(INDEX(רשימת_שיעורים[],MATCH(SUMPRODUCT((רשימת_שיעורים[יום]=לוח_זמנים_של_כיתה[[#Headers],[שבת]])*(ROUNDDOWN($B13,10)>=ROUNDDOWN(רשימת_שיעורים[שעת התחלה],10))*($B13<=רשימת_שיעורים[שעת סיום]),רשימת_שיעורים[ייחודי]),רשימת_שיעורים[ייחודי],0),2),0)","v":0}]
[null,"10:30:00",{"$f":"IFERROR(INDEX(רשימת_שיעורים[],MATCH(SUMPRODUCT((רשימת_שיעורים[יום]=לוח_זמנים_של_כיתה[[#Headers],[ראשון]])*(ROUNDDOWN($B14,10)>=ROUNDDOWN(רשימת_שיעורים[שעת התחלה],10))*($B14<=רשימת_שיעורים[שעת סיום]),רשימת_שיעורים[ייחודי]),רשימת_שיעורים[ייחודי],0),2),0)","v":0},{"$f":"IFERROR(INDEX(רשימת_שיעורים[],MATCH(SUMPRODUCT((רשימת_שיעורים[יום]=לוח_זמנים_של_כיתה[[#Headers],[שני]])*(ROUNDDOWN($B14,10)>=ROUNDDOWN(רשימת_שיעורים[שעת התחלה],10))*($B14<=רשימת_שיעורים[שעת סיום]),רשימת_שיעורים[ייחודי]),רשימת_שיעורים[ייחודי],0),2),0)","v":0},{"$f":"IFERROR(INDEX(רשימת_שיעורים[],MATCH(SUMPRODUCT((רשימת_שיעורים[יום]=לוח_זמנים_של_כיתה[[#Headers],[שלישי]])*(ROUNDDOWN($B14,10)>=ROUNDDOWN(רשימת_שיעורים[שעת התחלה],10))*($B14<=רשימת_שיעורים[שעת סיום]),רשימת_שיעורים[ייחודי]),רשימת_שיעורים[ייחודי],0),2),0)","v":0},{"$f":"IFERROR(INDEX(רשימת_שיעורים[],MATCH(SUMPRODUCT((רשימת_שיעורים[יום]=לוח_זמנים_של_כיתה[[#Headers],[רביעי]])*(ROUNDDOWN($B14,10)>=ROUNDDOWN(רשימת_שיעורים[שעת התחלה],10))*($B14<=רשימת_שיעורים[שעת סיום]),רשימת_שיעורים[ייחודי]),רשימת_שיעורים[ייחודי],0),2),0)","v":0},{"$f":"IFERROR(INDEX(רשימת_שיעורים[],MATCH(SUMPRODUCT((רשימת_שיעורים[יום]=לוח_זמנים_של_כיתה[[#Headers],[חמישי]])*(ROUNDDOWN($B14,10)>=ROUNDDOWN(רשימת_שיעורים[שעת התחלה],10))*($B14<=רשימת_שיעורים[שעת סיום]),רשימת_שיעורים[ייחודי]),רשימת_שיעורים[ייחודי],0),2),0)","v":0},{"$f":"IFERROR(INDEX(רשימת_שיעורים[],MATCH(SUMPRODUCT((רשימת_שיעורים[יום]=לוח_זמנים_של_כיתה[[#Headers],[שישי]])*(ROUNDDOWN($B14,10)>=ROUNDDOWN(רשימת_שיעורים[שעת התחלה],10))*($B14<=רשימת_שיעורים[שעת סיום]),רשימת_שיעורים[ייחודי]),רשימת_שיעורים[ייחודי],0),2),0)","v":0},{"$f":"IFERROR(INDEX(רשימת_שיעורים[],MATCH(SUMPRODUCT((רשימת_שיעורים[יום]=לוח_זמנים_של_כיתה[[#Headers],[שבת]])*(ROUNDDOWN($B14,10)>=ROUNDDOWN(רשימת_שיעורים[שעת התחלה],10))*($B14<=רשימת_שיעורים[שעת סיום]),רשימת_שיעורים[ייחודי]),רשימת_שיעורים[ייחודי],0),2),0)","v":0}]
[null,"10:45:00",{"$f":"IFERROR(INDEX(רשימת_שיעורים[],MATCH(SUMPRODUCT((רשימת_שיעורים[יום]=לוח_זמנים_של_כיתה[[#Headers],[ראשון]])*(ROUNDDOWN($B15,10)>=ROUNDDOWN(רשימת_שיעורים[שעת התחלה],10))*($B15<=רשימת_שיעורים[שעת סיום]),רשימת_שיעורים[ייחודי]),רשימת_שיעורים[ייחודי],0),2),0)","v":0},{"$f":"IFERROR(INDEX(רשימת_שיעורים[],MATCH(SUMPRODUCT((רשימת_שיעורים[יום]=לוח_זמנים_של_כיתה[[#Headers],[שני]])*(ROUNDDOWN($B15,10)>=ROUNDDOWN(רשימת_שיעורים[שעת התחלה],10))*($B15<=רשימת_שיעורים[שעת סיום]),רשימת_שיעורים[ייחודי]),רשימת_שיעורים[ייחודי],0),2),0)","v":0},{"$f":"IFERROR(INDEX(רשימת_שיעורים[],MATCH(SUMPRODUCT((רשימת_שיעורים[יום]=לוח_זמנים_של_כיתה[[#Headers],[שלישי]])*(ROUNDDOWN($B15,10)>=ROUNDDOWN(רשימת_שיעורים[שעת התחלה],10))*($B15<=רשימת_שיעורים[שעת סיום]),רשימת_שיעורים[ייחודי]),רשימת_שיעורים[ייחודי],0),2),0)","v":0},{"$f":"IFERROR(INDEX(רשימת_שיעורים[],MATCH(SUMPRODUCT((רשימת_שיעורים[יום]=לוח_זמנים_של_כיתה[[#Headers],[רביעי]])*(ROUNDDOWN($B15,10)>=ROUNDDOWN(רשימת_שיעורים[שעת התחלה],10))*($B15<=רשימת_שיעורים[שעת סיום]),רשימת_שיעורים[ייחודי]),רשימת_שיעורים[ייחודי],0),2),0)","v":0},{"$f":"IFERROR(INDEX(רשימת_שיעורים[],MATCH(SUMPRODUCT((רשימת_שיעורים[יום]=לוח_זמנים_של_כיתה[[#Headers],[חמישי]])*(ROUNDDOWN($B15,10)>=ROUNDDOWN(רשימת_שיעורים[שעת התחלה],10))*($B15<=רשימת_שיעורים[שעת סיום]),רשימת_שיעורים[ייחודי]),רשימת_שיעורים[ייחודי],0),2),0)","v":0},{"$f":"IFERROR(INDEX(רשימת_שיעורים[],MATCH(SUMPRODUCT((רשימת_שיעורים[יום]=לוח_זמנים_של_כיתה[[#Headers],[שישי]])*(ROUNDDOWN($B15,10)>=ROUNDDOWN(רשימת_שיעורים[שעת התחלה],10))*($B15<=רשימת_שיעורים[שעת סיום]),רשימת_שיעורים[ייחודי]),רשימת_שיעורים[ייחודי],0),2),0)","v":0},{"$f":"IFERROR(INDEX(רשימת_שיעורים[],MATCH(SUMPRODUCT((רשימת_שיעורים[יום]=לוח_זמנים_של_כיתה[[#Headers],[שבת]])*(ROUNDDOWN($B15,10)>=ROUNDDOWN(רשימת_שיעורים[שעת התחלה],10))*($B15<=רשימת_שיעורים[שעת סיום]),רשימת_שיעורים[ייחודי]),רשימת_שיעורים[ייחודי],0),2),0)","v":0}]
[null,"11:00:00",{"$f":"IFERROR(INDEX(רשימת_שיעורים[],MATCH(SUMPRODUCT((רשימת_שיעורים[יום]=לוח_זמנים_של_כיתה[[#Headers],[ראשון]])*(ROUNDDOWN($B16,10)>=ROUNDDOWN(רשימת_שיעורים[שעת התחלה],10))*($B16<=רשימת_שיעורים[שעת סיום]),רשימת_שיעורים[ייחודי]),רשימת_שיעורים[ייחודי],0),2),0)","v":0},{"$f":"IFERROR(INDEX(רשימת_שיעורים[],MATCH(SUMPRODUCT((רשימת_שיעורים[יום]=לוח_זמנים_של_כיתה[[#Headers],[שני]])*(ROUNDDOWN($B16,10)>=ROUNDDOWN(רשימת_שיעורים[שעת התחלה],10))*($B16<=רשימת_שיעורים[שעת סיום]),רשימת_שיעורים[ייחודי]),רשימת_שיעורים[ייחודי],0),2),0)","v":0},{"$f":"IFERROR(INDEX(רשימת_שיעורים[],MATCH(SUMPRODUCT((רשימת_שיעורים[יום]=לוח_זמנים_של_כיתה[[#Headers],[שלישי]])*(ROUNDDOWN($B16,10)>=ROUNDDOWN(רשימת_שיעורים[שעת התחלה],10))*($B16<=רשימת_שיעורים[שעת סיום]),רשימת_שיעורים[ייחודי]),רשימת_שיעורים[ייחודי],0),2),0)","v":"HPE-295"},{"$f":"IFERROR(INDEX(רשימת_שיעורים[],MATCH(SUMPRODUCT((רשימת_שיעורים[יום]=לוח_זמנים_של_כיתה[[#Headers],[רביעי]])*(ROUNDDOWN($B16,10)>=ROUNDDOWN(רשימת_שיעורים[שעת התחלה],10))*($B16<=רשימת_שיעורים[שעת סיום]),רשימת_שיעורים[ייחודי]),רשימת_שיעורים[ייחודי],0),2),0)","v":0},{"$f":"IFERROR(INDEX(רשימת_שיעורים[],MATCH(SUMPRODUCT((רשימת_שיעורים[יום]=לוח_זמנים_של_כיתה[[#Headers],[חמישי]])*(ROUNDDOWN($B16,10)>=ROUNDDOWN(רשימת_שיעורים[שעת התחלה],10))*($B16<=רשימת_שיעורים[שעת סיום]),רשימת_שיעורים[ייחודי]),רשימת_שיעורים[ייחודי],0),2),0)","v":"HPE-295"},{"$f":"IFERROR(INDEX(רשימת_שיעורים[],MATCH(SUMPRODUCT((רשימת_שיעורים[יום]=לוח_זמנים_של_כיתה[[#Headers],[שישי]])*(ROUNDDOWN($B16,10)>=ROUNDDOWN(רשימת_שיעורים[שעת התחלה],10))*($B16<=רשימת_שיעורים[שעת סיום]),רשימת_שיעורים[ייחודי]),רשימת_שיעורים[ייחודי],0),2),0)","v":0},{"$f":"IFERROR(INDEX(רשימת_שיעורים[],MATCH(SUMPRODUCT((רשימת_שיעורים[יום]=לוח_זמנים_של_כיתה[[#Headers],[שבת]])*(ROUNDDOWN($B16,10)>=ROUNDDOWN(רשימת_שיעורים[שעת התחלה],10))*($B16<=רשימת_שיעורים[שעת סיום]),רשימת_שיעורים[ייחודי]),רשימת_שיעורים[ייחודי],0),2),0)","v":0}]
[null,"11:15:00",{"$f":"IFERROR(INDEX(רשימת_שיעורים[],MATCH(SUMPRODUCT((רשימת_שיעורים[יום]=לוח_זמנים_של_כיתה[[#Headers],[ראשון]])*(ROUNDDOWN($B17,10)>=ROUNDDOWN(רשימת_שיעורים[שעת התחלה],10))*($B17<=רשימת_שיעורים[שעת סיום]),רשימת_שיעורים[ייחודי]),רשימת_שיעורים[ייחודי],0),2),0)","v":0},{"$f":"IFERROR(INDEX(רשימת_שיעורים[],MATCH(SUMPRODUCT((רשימת_שיעורים[יום]=לוח_זמנים_של_כיתה[[#Headers],[שני]])*(ROUNDDOWN($B17,10)>=ROUNDDOWN(רשימת_שיעורים[שעת התחלה],10))*($B17<=רשימת_שיעורים[שעת סיום]),רשימת_שיעורים[ייחודי]),רשימת_שיעורים[ייחודי],0),2),0)","v":0},{"$f":"IFERROR(INDEX(רשימת_שיעורים[],MATCH(SUMPRODUCT((רשימת_שיעורים[יום]=לוח_זמנים_של_כיתה[[#Headers],[שלישי]])*(ROUNDDOWN($B17,10)>=ROUNDDOWN(רשימת_שיעורים[שעת התחלה],10))*($B17<=רשימת_שיעורים[שעת סיום]),רשימת_שיעורים[ייחודי]),רשימת_שיעורים[ייחודי],0),2),0)","v":"HPE-295"},{"$f":"IFERROR(INDEX(רשימת_שיעורים[],MATCH(SUMPRODUCT((רשימת_שיעורים[יום]=לוח_זמנים_של_כיתה[[#Headers],[רביעי]])*(ROUNDDOWN($B17,10)>=ROUNDDOWN(רשימת_שיעורים[שעת התחלה],10))*($B17<=רשימת_שיעורים[שעת סיום]),רשימת_שיעורים[ייחודי]),רשימת_שיעורים[ייחודי],0),2),0)","v":0},{"$f":"IFERROR(INDEX(רשימת_שיעורים[],MATCH(SUMPRODUCT((רשימת_שיעורים[יום]=לוח_זמנים_של_כיתה[[#Headers],[חמישי]])*(ROUNDDOWN($B17,10)>=ROUNDDOWN(רשימת_שיעורים[שעת התחלה],10))*($B17<=רשימת_שיעורים[שעת סיום]),רשימת_שיעורים[ייחודי]),רשימת_שיעורים[ייחודי],0),2),0)","v":"HPE-295"},{"$f":"IFERROR(INDEX(רשימת_שיעורים[],MATCH(SUMPRODUCT((רשימת_שיעורים[יום]=לוח_זמנים_של_כיתה[[#Headers],[שישי]])*(ROUNDDOWN($B17,10)>=ROUNDDOWN(רשימת_שיעורים[שעת התחלה],10))*($B17<=רשימת_שיעורים[שעת סיום]),רשימת_שיעורים[ייחודי]),רשימת_שיעורים[ייחודי],0),2),0)","v":0},{"$f":"IFERROR(INDEX(רשימת_שיעורים[],MATCH(SUMPRODUCT((רשימת_שיעורים[יום]=לוח_זמנים_של_כיתה[[#Headers],[שבת]])*(ROUNDDOWN($B17,10)>=ROUNDDOWN(רשימת_שיעורים[שעת התחלה],10))*($B17<=רשימת_שיעורים[שעת סיום]),רשימת_שיעורים[ייחודי]),רשימת_שיעורים[ייחודי],0),2),0)","v":0}]
[null,"11:30:00",{"$f":"IFERROR(INDEX(רשימת_שיעורים[],MATCH(SUMPRODUCT((רשימת_שיעורים[יום]=לוח_זמנים_של_כיתה[[#Headers],[ראשון]])*(ROUNDDOWN($B18,10)>=ROUNDDOWN(רשימת_שיעורים[שעת התחלה],10))*($B18<=רשימת_שיעורים[שעת סיום]),רשימת_שיעורים[ייחודי]),רשימת_שיעורים[ייחודי],0),2),0)","v":0},{"$f":"IFERROR(INDEX(רשימת_שיעורים[],MATCH(SUMPRODUCT((רשימת_שיעורים[יום]=לוח_זמנים_של_כיתה[[#Headers],[שני]])*(ROUNDDOWN($B18,10)>=ROUNDDOWN(רשימת_שיעורים[שעת התחלה],10))*($B18<=רשימת_שיעורים[שעת סיום]),רשימת_שיעורים[ייחודי]),רשימת_שיעורים[ייחודי],0),2),0)","v":0},{"$f":"IFERROR(INDEX(רשימת_שיעורים[],MATCH(SUMPRODUCT((רשימת_שיעורים[יום]=לוח_זמנים_של_כיתה[[#Headers],[שלישי]])*(ROUNDDOWN($B18,10)>=ROUNDDOWN(רשימת_שיעורים[שעת התחלה],10))*($B18<=רשימת_שיעורים[שעת סיום]),רשימת_שיעורים[ייחודי]),רשימת_שיעורים[ייחודי],0),2),0)","v":"HPE-295"},{"$f":"IFERROR(INDEX(רשימת_שיעורים[],MATCH(SUMPRODUCT((רשימת_שיעורים[יום]=לוח_זמנים_של_כיתה[[#Headers],[רביעי]])*(ROUNDDOWN($B18,10)>=ROUNDDOWN(רשימת_שיעורים[שעת התחלה],10))*($B18<=רשימת_שיעורים[שעת סיום]),רשימת_שיעורים[ייחודי]),רשימת_שיעורים[ייחודי],0),2),0)","v":0},{"$f":"IFERROR(INDEX(רשימת_שיעורים[],MATCH(SUMPRODUCT((רשימת_שיעורים[יום]=לוח_זמנים_של_כיתה[[#Headers],[חמישי]])*(ROUNDDOWN($B18,10)>=ROUNDDOWN(רשימת_שיעורים[שעת התחלה],10))*($B18<=רשימת_שיעורים[שעת סיום]),רשימת_שיעורים[ייחודי]),רשימת_שיעורים[ייחודי],0),2),0)","v":"HPE-295"},{"$f":"IFERROR(INDEX(רשימת_שיעורים[],MATCH(SUMPRODUCT((רשימת_שיעורים[יום]=לוח_זמנים_של_כיתה[[#Headers],[שישי]])*(ROUNDDOWN($B18,10)>=ROUNDDOWN(רשימת_שיעורים[שעת התחלה],10))*($B18<=רשימת_שיעורים[שעת סיום]),רשימת_שיעורים[ייחודי]),רשימת_שיעורים[ייחודי],0),2),0)","v":0},{"$f":"IFERROR(INDEX(רשימת_שיעורים[],MATCH(SUMPRODUCT((רשימת_שיעורים[יום]=לוח_זמנים_של_כיתה[[#Headers],[שבת]])*(ROUNDDOWN($B18,10)>=ROUNDDOWN(רשימת_שיעורים[שעת התחלה],10))*($B18<=רשימת_שיעורים[שעת סיום]),רשימת_שיעורים[ייחודי]),רשימת_שיעורים[ייחודי],0),2),0)","v":0}]
[null,"11:45:00",{"$f":"IFERROR(INDEX(רשימת_שיעורים[],MATCH(SUMPRODUCT((רשימת_שיעורים[יום]=לוח_זמנים_של_כיתה[[#Headers],[ראשון]])*(ROUNDDOWN($B19,10)>=ROUNDDOWN(רשימת_שיעורים[שעת התחלה],10))*($B19<=רשימת_שיעורים[שעת סיום]),רשימת_שיעורים[ייחודי]),רשימת_שיעורים[ייחודי],0),2),0)","v":0},{"$f":"IFERROR(INDEX(רשימת_שיעורים[],MATCH(SUMPRODUCT((רשימת_שיעורים[יום]=לוח_זמנים_של_כיתה[[#Headers],[שני]])*(ROUNDDOWN($B19,10)>=ROUNDDOWN(רשימת_שיעורים[שעת התחלה],10))*($B19<=רשימת_שיעורים[שעת סיום]),רשימת_שיעורים[ייחודי]),רשימת_שיעורים[ייחודי],0),2),0)","v":0},{"$f":"IFERROR(INDEX(רשימת_שיעורים[],MATCH(SUMPRODUCT((רשימת_שיעורים[יום]=לוח_זמנים_של_כיתה[[#Headers],[שלישי]])*(ROUNDDOWN($B19,10)>=ROUNDDOWN(רשימת_שיעורים[שעת התחלה],10))*($B19<=רשימת_שיעורים[שעת סיום]),רשימת_שיעורים[ייחודי]),רשימת_שיעורים[ייחודי],0),2),0)","v":"HPE-295"},{"$f":"IFERROR(INDEX(רשימת_שיעורים[],MATCH(SUMPRODUCT((רשימת_שיעורים[יום]=לוח_זמנים_של_כיתה[[#Headers],[רביעי]])*(ROUNDDOWN($B19,10)>=ROUNDDOWN(רשימת_שיעורים[שעת התחלה],10))*($B19<=רשימת_שיעורים[שעת סיום]),רשימת_שיעורים[ייחודי]),רשימת_שיעורים[ייחודי],0),2),0)","v":0},{"$f":"IFERROR(INDEX(רשימת_שיעורים[],MATCH(SUMPRODUCT((רשימת_שיעורים[יום]=לוח_זמנים_של_כיתה[[#Headers],[חמישי]])*(ROUNDDOWN($B19,10)>=ROUNDDOWN(רשימת_שיעורים[שעת התחלה],10))*($B19<=רשימת_שיעורים[שעת סיום]),רשימת_שיעורים[ייחודי]),רשימת_שיעורים[ייחודי],0),2),0)","v":"HPE-295"},{"$f":"IFERROR(INDEX(רשימת_שיעורים[],MATCH(SUMPRODUCT((רשימת_שיעורים[יום]=לוח_זמנים_של_כיתה[[#Headers],[שישי]])*(ROUNDDOWN($B19,10)>=ROUNDDOWN(רשימת_שיעורים[שעת התחלה],10))*($B19<=רשימת_שיעורים[שעת סיום]),רשימת_שיעורים[ייחודי]),רשימת_שיעורים[ייחודי],0),2),0)","v":0},{"$f":"IFERROR(INDEX(רשימת_שיעורים[],MATCH(SUMPRODUCT((רשימת_שיעורים[יום]=לוח_זמנים_של_כיתה[[#Headers],[שבת]])*(ROUNDDOWN($B19,10)>=ROUNDDOWN(רשימת_שיעורים[שעת התחלה],10))*($B19<=רשימת_שיעורים[שעת סיום]),רשימת_שיעורים[ייחודי]),רשימת_שיעורים[ייחודי],0),2),0)","v":0}]
[null,"12:00:00",{"$f":"IFERROR(INDEX(רשימת_שיעורים[],MATCH(SUMPRODUCT((רשימת_שיעורים[יום]=לוח_זמנים_של_כיתה[[#Headers],[ראשון]])*(ROUNDDOWN($B20,10)>=ROUNDDOWN(רשימת_שיעורים[שעת התחלה],10))*($B20<=רשימת_שיעורים[שעת סיום]),רשימת_שיעורים[ייחודי]),רשימת_שיעורים[ייחודי],0),2),0)","v":0},{"$f":"IFERROR(INDEX(רשימת_שיעורים[],MATCH(SUMPRODUCT((רשימת_שיעורים[יום]=לוח_זמנים_של_כיתה[[#Headers],[שני]])*(ROUNDDOWN($B20,10)>=ROUNDDOWN(רשימת_שיעורים[שעת התחלה],10))*($B20<=רשימת_שיעורים[שעת סיום]),רשימת_שיעורים[ייחודי]),רשימת_שיעורים[ייחודי],0),2),0)","v":0},{"$f":"IFERROR(INDEX(רשימת_שיעורים[],MATCH(SUMPRODUCT((רשימת_שיעורים[יום]=לוח_זמנים_של_כיתה[[#Headers],[שלישי]])*(ROUNDDOWN($B20,10)>=ROUNDDOWN(רשימת_שיעורים[שעת התחלה],10))*($B20<=רשימת_שיעורים[שעת סיום]),רשימת_שיעורים[ייחודי]),רשימת_שיעורים[ייחודי],0),2),0)","v":"HPE-295"},{"$f":"IFERROR(INDEX(רשימת_שיעורים[],MATCH(SUMPRODUCT((רשימת_שיעורים[יום]=לוח_זמנים_של_כיתה[[#Headers],[רביעי]])*(ROUNDDOWN($B20,10)>=ROUNDDOWN(רשימת_שיעורים[שעת התחלה],10))*($B20<=רשימת_שיעורים[שעת סיום]),רשימת_שיעורים[ייחודי]),רשימת_שיעורים[ייחודי],0),2),0)","v":0},{"$f":"IFERROR(INDEX(רשימת_שיעורים[],MATCH(SUMPRODUCT((רשימת_שיעורים[יום]=לוח_זמנים_של_כיתה[[#Headers],[חמישי]])*(ROUNDDOWN($B20,10)>=ROUNDDOWN(רשימת_שיעורים[שעת התחלה],10))*($B20<=רשימת_שיעורים[שעת סיום]),רשימת_שיעורים[ייחודי]),רשימת_שיעורים[ייחודי],0),2),0)","v":"HPE-295"},{"$f":"IFERROR(INDEX(רשימת_שיעורים[],MATCH(SUMPRODUCT((רשימת_שיעורים[יום]=לוח_זמנים_של_כיתה[[#Headers],[שישי]])*(ROUNDDOWN($B20,10)>=ROUNDDOWN(רשימת_שיעורים[שעת התחלה],10))*($B20<=רשימת_שיעורים[שעת סיום]),רשימת_שיעורים[ייחודי]),רשימת_שיעורים[ייחודי],0),2),0)","v":0},{"$f":"IFERROR(INDEX(רשימת_שיעורים[],MATCH(SUMPRODUCT((רשימת_שיעורים[יום]=לוח_זמנים_של_כיתה[[#Headers],[שבת]])*(ROUNDDOWN($B20,10)>=ROUNDDOWN(רשימת_שיעורים[שעת התחלה],10))*($B20<=רשימת_שיעורים[שעת סיום]),רשימת_שיעורים[ייחודי]),רשימת_שיעורים[ייחודי],0),2),0)","v":0}]
[null,"12:15:00",{"$f":"IFERROR(INDEX(רשימת_שיעורים[],MATCH(SUMPRODUCT((רשימת_שיעורים[יום]=לוח_זמנים_של_כיתה[[#Headers],[ראשון]])*(ROUNDDOWN($B21,10)>=ROUNDDOWN(רשימת_שיעורים[שעת התחלה],10))*($B21<=רשימת_שיעורים[שעת סיום]),רשימת_שיעורים[ייחודי]),רשימת_שיעורים[ייחודי],0),2),0)","v":0},{"$f":"IFERROR(INDEX(רשימת_שיעורים[],MATCH(SUMPRODUCT((רשימת_שיעורים[יום]=לוח_זמנים_של_כיתה[[#Headers],[שני]])*(ROUNDDOWN($B21,10)>=ROUNDDOWN(רשימת_שיעורים[שעת התחלה],10))*($B21<=רשימת_שיעורים[שעת סיום]),רשימת_שיעורים[ייחודי]),רשימת_שיעורים[ייחודי],0),2),0)","v":0},{"$f":"IFERROR(INDEX(רשימת_שיעורים[],MATCH(SUMPRODUCT((רשימת_שיעורים[יום]=לוח_זמנים_של_כיתה[[#Headers],[שלישי]])*(ROUNDDOWN($B21,10)>=ROUNDDOWN(רשימת_שיעורים[שעת התחלה],10))*($B21<=רשימת_שיעורים[שעת סיום]),רשימת_שיעורים[ייחודי]),רשימת_שיעורים[ייחודי],0),2),0)","v":0},{"$f":"IFERROR(INDEX(רשימת_שיעורים[],MATCH(SUMPRODUCT((רשימת_שיעורים[יום]=לוח_זמנים_של_כיתה[[#Headers],[רביעי]])*(ROUNDDOWN($B21,10)>=ROUNDDOWN(רשימת_שיעורים[שעת התחלה],10))*($B21<=רשימת_שיעורים[שעת סיום]),רשימת_שיעורים[ייחודי]),רשימת_שיעורים[ייחודי],0),2),0)","v":0},{"$f":"IFERROR(INDEX(רשימת_שיעורים[],MATCH(SUMPRODUCT((רשימת_שיעורים[יום]=לוח_זמנים_של_כיתה[[#Headers],[חמישי]])*(ROUNDDOWN($B21,10)>=ROUNDDOWN(רשימת_שיעורים[שעת התחלה],10))*($B21<=רשימת_שיעורים[שעת סיום]),רשימת_שיעורים[ייחודי]),רשימת_שיעורים[ייחודי],0),2),0)","v":0},{"$f":"IFERROR(INDEX(רשימת_שיעורים[],MATCH(SUMPRODUCT((רשימת_שיעורים[יום]=לוח_זמנים_של_כיתה[[#Headers],[שישי]])*(ROUNDDOWN($B21,10)>=ROUNDDOWN(רשימת_שיעורים[שעת התחלה],10))*($B21<=רשימת_שיעורים[שעת סיום]),רשימת_שיעורים[ייחודי]),רשימת_שיעורים[ייחודי],0),2),0)","v":0},{"$f":"IFERROR(INDEX(רשימת_שיעורים[],MATCH(SUMPRODUCT((רשימת_שיעורים[יום]=לוח_זמנים_של_כיתה[[#Headers],[שבת]])*(ROUNDDOWN($B21,10)>=ROUNDDOWN(רשימת_שיעורים[שעת התחלה],10))*($B21<=רשימת_שיעורים[שעת סיום]),רשימת_שיעורים[ייחודי]),רשימת_שיעורים[ייחודי],0),2),0)","v":0}]
[null,"12:30:00",{"$f":"IFERROR(INDEX(רשימת_שיעורים[],MATCH(SUMPRODUCT((רשימת_שיעורים[יום]=לוח_זמנים_של_כיתה[[#Headers],[ראשון]])*(ROUNDDOWN($B22,10)>=ROUNDDOWN(רשימת_שיעורים[שעת התחלה],10))*($B22<=רשימת_שיעורים[שעת סיום]),רשימת_שיעורים[ייחודי]),רשימת_שיעורים[ייחודי],0),2),0)","v":0},{"$f":"IFERROR(INDEX(רשימת_שיעורים[],MATCH(SUMPRODUCT((רשימת_שיעורים[יום]=לוח_זמנים_של_כיתה[[#Headers],[שני]])*(ROUNDDOWN($B22,10)>=ROUNDDOWN(רשימת_שיעורים[שעת התחלה],10))*($B22<=רשימת_שיעורים[שעת סיום]),רשימת_שיעורים[ייחודי]),רשימת_שיעורים[ייחודי],0),2),0)","v":0},{"$f":"IFERROR(INDEX(רשימת_שיעורים[],MATCH(SUMPRODUCT((רשימת_שיעורים[יום]=לוח_זמנים_של_כיתה[[#Headers],[שלישי]])*(ROUNDDOWN($B22,10)>=ROUNDDOWN(רשימת_שיעורים[שעת התחלה],10))*($B22<=רשימת_שיעורים[שעת סיום]),רשימת_שיעורים[ייחודי]),רשימת_שיעורים[ייחודי],0),2),0)","v":0},{"$f":"IFERROR(INDEX(רשימת_שיעורים[],MATCH(SUMPRODUCT((רשימת_שיעורים[יום]=לוח_זמנים_של_כיתה[[#Headers],[רביעי]])*(ROUNDDOWN($B22,10)>=ROUNDDOWN(רשימת_שיעורים[שעת התחלה],10))*($B22<=רשימת_שיעורים[שעת סיום]),רשימת_שיעורים[ייחודי]),רשימת_שיעורים[ייחודי],0),2),0)","v":0},{"$f":"IFERROR(INDEX(רשימת_שיעורים[],MATCH(SUMPRODUCT((רשימת_שיעורים[יום]=לוח_זמנים_של_כיתה[[#Headers],[חמישי]])*(ROUNDDOWN($B22,10)>=ROUNDDOWN(רשימת_שיעורים[שעת התחלה],10))*($B22<=רשימת_שיעורים[שעת סיום]),רשימת_שיעורים[ייחודי]),רשימת_שיעורים[ייחודי],0),2),0)","v":0},{"$f":"IFERROR(INDEX(רשימת_שיעורים[],MATCH(SUMPRODUCT((רשימת_שיעורים[יום]=לוח_זמנים_של_כיתה[[#Headers],[שישי]])*(ROUNDDOWN($B22,10)>=ROUNDDOWN(רשימת_שיעורים[שעת התחלה],10))*($B22<=רשימת_שיעורים[שעת סיום]),רשימת_שיעורים[ייחודי]),רשימת_שיעורים[ייחודי],0),2),0)","v":0},{"$f":"IFERROR(INDEX(רשימת_שיעורים[],MATCH(SUMPRODUCT((רשימת_שיעורים[יום]=לוח_זמנים_של_כיתה[[#Headers],[שבת]])*(ROUNDDOWN($B22,10)>=ROUNDDOWN(רשימת_שיעורים[שעת התחלה],10))*($B22<=רשימת_שיעורים[שעת סיום]),רשימת_שיעורים[ייחודי]),רשימת_שיעורים[ייחודי],0),2),0)","v":0}]
[null,"12:45:00",{"$f":"IFERROR(INDEX(רשימת_שיעורים[],MATCH(SUMPRODUCT((רשימת_שיעורים[יום]=לוח_זמנים_של_כיתה[[#Headers],[ראשון]])*(ROUNDDOWN($B23,10)>=ROUNDDOWN(רשימת_שיעורים[שעת התחלה],10))*($B23<=רשימת_שיעורים[שעת סיום]),רשימת_שיעורים[ייחודי]),רשימת_שיעורים[ייחודי],0),2),0)","v":0},{"$f":"IFERROR(INDEX(רשימת_שיעורים[],MATCH(SUMPRODUCT((רשימת_שיעורים[יום]=לוח_זמנים_של_כיתה[[#Headers],[שני]])*(ROUNDDOWN($B23,10)>=ROUNDDOWN(רשימת_שיעורים[שעת התחלה],10))*($B23<=רשימת_שיעורים[שעת סיום]),רשימת_שיעורים[ייחודי]),רשימת_שיעורים[ייחודי],0),2),0)","v":0},{"$f":"IFERROR(INDEX(רשימת_שיעורים[],MATCH(SUMPRODUCT((רשימת_שיעורים[יום]=לוח_זמנים_של_כיתה[[#Headers],[שלישי]])*(ROUNDDOWN($B23,10)>=ROUNDDOWN(רשימת_שיעורים[שעת התחלה],10))*($B23<=רשימת_שיעורים[שעת סיום]),רשימת_שיעורים[ייחודי]),רשימת_שיעורים[ייחודי],0),2),0)","v":0},{"$f":"IFERROR(INDEX(רשימת_שיעורים[],MATCH(SUMPRODUCT((רשימת_שיעורים[יום]=לוח_זמנים_של_כיתה[[#Headers],[רביעי]])*(ROUNDDOWN($B23,10)>=ROUNDDOWN(רשימת_שיעורים[שעת התחלה],10))*($B23<=רשימת_שיעורים[שעת סיום]),רשימת_שיעורים[ייחודי]),רשימת_שיעורים[ייחודי],0),2),0)","v":0},{"$f":"IFERROR(INDEX(רשימת_שיעורים[],MATCH(SUMPRODUCT((רשימת_שיעורים[יום]=לוח_זמנים_של_כיתה[[#Headers],[חמישי]])*(ROUNDDOWN($B23,10)>=ROUNDDOWN(רשימת_שיעורים[שעת התחלה],10))*($B23<=רשימת_שיעורים[שעת סיום]),רשימת_שיעורים[ייחודי]),רשימת_שיעורים[ייחודי],0),2),0)","v":0},{"$f":"IFERROR(INDEX(רשימת_שיעורים[],MATCH(SUMPRODUCT((רשימת_שיעורים[יום]=לוח_זמנים_של_כיתה[[#Headers],[שישי]])*(ROUNDDOWN($B23,10)>=ROUNDDOWN(רשימת_שיעורים[שעת התחלה],10))*($B23<=רשימת_שיעורים[שעת סיום]),רשימת_שיעורים[ייחודי]),רשימת_שיעורים[ייחודי],0),2),0)","v":0},{"$f":"IFERROR(INDEX(רשימת_שיעורים[],MATCH(SUMPRODUCT((רשימת_שיעורים[יום]=לוח_זמנים_של_כיתה[[#Headers],[שבת]])*(ROUNDDOWN($B23,10)>=ROUNDDOWN(רשימת_שיעורים[שעת התחלה],10))*($B23<=רשימת_שיעורים[שעת סיום]),רשימת_שיעורים[ייחודי]),רשימת_שיעורים[ייחודי],0),2),0)","v":0}]
[null,"13:00:00",{"$f":"IFERROR(INDEX(רשימת_שיעורים[],MATCH(SUMPRODUCT((רשימת_שיעורים[יום]=לוח_זמנים_של_כיתה[[#Headers],[ראשון]])*(ROUNDDOWN($B24,10)>=ROUNDDOWN(רשימת_שיעורים[שעת התחלה],10))*($B24<=רשימת_שיעורים[שעת סיום]),רשימת_שיעורים[ייחודי]),רשימת_שיעורים[ייחודי],0),2),0)","v":0},{"$f":"IFERROR(INDEX(רשימת_שיעורים[],MATCH(SUMPRODUCT((רשימת_שיעורים[יום]=לוח_זמנים_של_כיתה[[#Headers],[שני]])*(ROUNDDOWN($B24,10)>=ROUNDDOWN(רשימת_שיעורים[שעת התחלה],10))*($B24<=רשימת_שיעורים[שעת סיום]),רשימת_שיעורים[ייחודי]),רשימת_שיעורים[ייחודי],0),2),0)","v":"WR-121"},{"$f":"IFERROR(INDEX(רשימת_שיעורים[],MATCH(SUMPRODUCT((רשימת_שיעורים[יום]=לוח_זמנים_של_כיתה[[#Headers],[שלישי]])*(ROUNDDOWN($B24,10)>=ROUNDDOWN(רשימת_שיעורים[שעת התחלה],10))*($B24<=רשימת_שיעורים[שעת סיום]),רשימת_שיעורים[ייחודי]),רשימת_שיעורים[ייחודי],0),2),0)","v":0},{"$f":"IFERROR(INDEX(רשימת_שיעורים[],MATCH(SUMPRODUCT((רשימת_שיעורים[יום]=לוח_זמנים_של_כיתה[[#Headers],[רביעי]])*(ROUNDDOWN($B24,10)>=ROUNDDOWN(רשימת_שיעורים[שעת התחלה],10))*($B24<=רשימת_שיעורים[שעת סיום]),רשימת_שיעורים[ייחודי]),רשימת_שיעורים[ייחודי],0),2),0)","v":"WR-121"},{"$f":"IFERROR(INDEX(רשימת_שיעורים[],MATCH(SUMPRODUCT((רשימת_שיעורים[יום]=לוח_זמנים_של_כיתה[[#Headers],[חמישי]])*(ROUNDDOWN($B24,10)>=ROUNDDOWN(רשימת_שיעורים[שעת התחלה],10))*($B24<=רשימת_שיעורים[שעת סיום]),רשימת_שיעורים[ייחודי]),רשימת_שיעורים[ייחודי],0),2),0)","v":0},{"$f":"IFERROR(INDEX(רשימת_שיעורים[],MATCH(SUMPRODUCT((רשימת_שיעורים[יום]=לוח_זמנים_של_כיתה[[#Headers],[שישי]])*(ROUNDDOWN($B24,10)>=ROUNDDOWN(רשימת_שיעורים[שעת התחלה],10))*($B24<=רשימת_שיעורים[שעת סיום]),רשימת_שיעורים[ייחודי]),רשימת_שיעורים[ייחודי],0),2),0)","v":0},{"$f":"IFERROR(INDEX(רשימת_שיעורים[],MATCH(SUMPRODUCT((רשימת_שיעורים[יום]=לוח_זמנים_של_כיתה[[#Headers],[שבת]])*(ROUNDDOWN($B24,10)>=ROUNDDOWN(רשימת_שיעורים[שעת התחלה],10))*($B24<=רשימת_שיעורים[שעת סיום]),רשימת_שיעורים[ייחודי]),רשימת_שיעורים[ייחודי],0),2),0)","v":0}]
[null,"13:15:00",{"$f":"IFERROR(INDEX(רשימת_שיעורים[],MATCH(SUMPRODUCT((רשימת_שיעורים[יום]=לוח_זמנים_של_כיתה[[#Headers],[ראשון]])*(ROUNDDOWN($B25,10)>=ROUNDDOWN(רשימת_שיעורים[שעת התחלה],10))*($B25<=רשימת_שיעורים[שעת סיום]),רשימת_שיעורים[ייחודי]),רשימת_שיעורים[ייחודי],0),2),0)","v":0},{"$f":"IFERROR(INDEX(רשימת_שיעורים[],MATCH(SUMPRODUCT((רשימת_שיעורים[יום]=לוח_זמנים_של_כיתה[[#Headers],[שני]])*(ROUNDDOWN($B25,10)>=ROUNDDOWN(רשימת_שיעורים[שעת התחלה],10))*($B25<=רשימת_שיעורים[שעת סיום]),רשימת_שיעורים[ייחודי]),רשימת_שיעורים[ייחודי],0),2),0)","v":"WR-121"},{"$f":"IFERROR(INDEX(רשימת_שיעורים[],MATCH(SUMPRODUCT((רשימת_שיעורים[יום]=לוח_זמנים_של_כיתה[[#Headers],[שלישי]])*(ROUNDDOWN($B25,10)>=ROUNDDOWN(רשימת_שיעורים[שעת התחלה],10))*($B25<=רשימת_שיעורים[שעת סיום]),רשימת_שיעורים[ייחודי]),רשימת_שיעורים[ייחודי],0),2),0)","v":0},{"$f":"IFERROR(INDEX(רשימת_שיעורים[],MATCH(SUMPRODUCT((רשימת_שיעורים[יום]=לוח_זמנים_של_כיתה[[#Headers],[רביעי]])*(ROUNDDOWN($B25,10)>=ROUNDDOWN(רשימת_שיעורים[שעת התחלה],10))*($B25<=רשימת_שיעורים[שעת סיום]),רשימת_שיעורים[ייחודי]),רשימת_שיעורים[ייחודי],0),2),0)","v":"WR-121"},{"$f":"IFERROR(INDEX(רשימת_שיעורים[],MATCH(SUMPRODUCT((רשימת_שיעורים[יום]=לוח_זמנים_של_כיתה[[#Headers],[חמישי]])*(ROUNDDOWN($B25,10)>=ROUNDDOWN(רשימת_שיעורים[שעת התחלה],10))*($B25<=רשימת_שיעורים[שעת סיום]),רשימת_שיעורים[ייחודי]),רשימת_שיעורים[ייחודי],0),2),0)","v":0},{"$f":"IFERROR(INDEX(רשימת_שיעורים[],MATCH(SUMPRODUCT((רשימת_שיעורים[יום]=לוח_זמנים_של_כיתה[[#Headers],[שישי]])*(ROUNDDOWN($B25,10)>=ROUNDDOWN(רשימת_שיעורים[שעת התחלה],10))*($B25<=רשימת_שיעורים[שעת סיום]),רשימת_שיעורים[ייחודי]),רשימת_שיעורים[ייחודי],0),2),0)","v":0},{"$f":"IFERROR(INDEX(רשימת_שיעורים[],MATCH(SUMPRODUCT((רשימת_שיעורים[יום]=לוח_זמנים_של_כיתה[[#Headers],[שבת]])*(ROUNDDOWN($B25,10)>=ROUNDDOWN(רשימת_שיעורים[שעת התחלה],10))*($B25<=רשימת_שיעורים[שעת סיום]),רשימת_שיעורים[ייחודי]),רשימת_שיעורים[ייחודי],0),2),0)","v":0}]
[null,"13:30:00",{"$f":"IFERROR(INDEX(רשימת_שיעורים[],MATCH(SUMPRODUCT((רשימת_שיעורים[יום]=לוח_זמנים_של_כיתה[[#Headers],[ראשון]])*(ROUNDDOWN($B26,10)>=ROUNDDOWN(רשימת_שיעורים[שעת התחלה],10))*($B26<=רשימת_שיעורים[שעת סיום]),רשימת_שיעורים[ייחודי]),רשימת_שיעורים[ייחודי],0),2),0)","v":0},{"$f":"IFERROR(INDEX(רשימת_שיעורים[],MATCH(SUMPRODUCT((רשימת_שיעורים[יום]=לוח_זמנים_של_כיתה[[#Headers],[שני]])*(ROUNDDOWN($B26,10)>=ROUNDDOWN(רשימת_שיעורים[שעת התחלה],10))*($B26<=רשימת_שיעורים[שעת סיום]),רשימת_שיעורים[ייחודי]),רשימת_שיעורים[ייחודי],0),2),0)","v":"WR-121"},{"$f":"IFERROR(INDEX(רשימת_שיעורים[],MATCH(SUMPRODUCT((רשימת_שיעורים[יום]=לוח_זמנים_של_כיתה[[#Headers],[שלישי]])*(ROUNDDOWN($B26,10)>=ROUNDDOWN(רשימת_שיעורים[שעת התחלה],10))*($B26<=רשימת_שיעורים[שעת סיום]),רשימת_שיעורים[ייחודי]),רשימת_שיעורים[ייחודי],0),2),0)","v":0},{"$f":"IFERROR(INDEX(רשימת_שיעורים[],MATCH(SUMPRODUCT((רשימת_שיעורים[יום]=לוח_זמנים_של_כיתה[[#Headers],[רביעי]])*(ROUNDDOWN($B26,10)>=ROUNDDOWN(רשימת_שיעורים[שעת התחלה],10))*($B26<=רשימת_שיעורים[שעת סיום]),רשימת_שיעורים[ייחודי]),רשימת_שיעורים[ייחודי],0),2),0)","v":"WR-121"},{"$f":"IFERROR(INDEX(רשימת_שיעורים[],MATCH(SUMPRODUCT((רשימת_שיעורים[יום]=לוח_זמנים_של_כיתה[[#Headers],[חמישי]])*(ROUNDDOWN($B26,10)>=ROUNDDOWN(רשימת_שיעורים[שעת התחלה],10))*($B26<=רשימת_שיעורים[שעת סיום]),רשימת_שיעורים[ייחודי]),רשימת_שיעורים[ייחודי],0),2),0)","v":0},{"$f":"IFERROR(INDEX(רשימת_שיעורים[],MATCH(SUMPRODUCT((רשימת_שיעורים[יום]=לוח_זמנים_של_כיתה[[#Headers],[שישי]])*(ROUNDDOWN($B26,10)>=ROUNDDOWN(רשימת_שיעורים[שעת התחלה],10))*($B26<=רשימת_שיעורים[שעת סיום]),רשימת_שיעורים[ייחודי]),רשימת_שיעורים[ייחודי],0),2),0)","v":0},{"$f":"IFERROR(INDEX(רשימת_שיעורים[],MATCH(SUMPRODUCT((רשימת_שיעורים[יום]=לוח_זמנים_של_כיתה[[#Headers],[שבת]])*(ROUNDDOWN($B26,10)>=ROUNDDOWN(רשימת_שיעורים[שעת התחלה],10))*($B26<=רשימת_שיעורים[שעת סיום]),רשימת_שיעורים[ייחודי]),רשימת_שיעורים[ייחודי],0),2),0)","v":0}]
[null,"13:45:00",{"$f":"IFERROR(INDEX(רשימת_שיעורים[],MATCH(SUMPRODUCT((רשימת_שיעורים[יום]=לוח_זמנים_של_כיתה[[#Headers],[ראשון]])*(ROUNDDOWN($B27,10)>=ROUNDDOWN(רשימת_שיעורים[שעת התחלה],10))*($B27<=רשימת_שיעורים[שעת סיום]),רשימת_שיעורים[ייחודי]),רשימת_שיעורים[ייחודי],0),2),0)","v":0},{"$f":"IFERROR(INDEX(רשימת_שיעורים[],MATCH(SUMPRODUCT((רשימת_שיעורים[יום]=לוח_זמנים_של_כיתה[[#Headers],[שני]])*(ROUNDDOWN($B27,10)>=ROUNDDOWN(רשימת_שיעורים[שעת התחלה],10))*($B27<=רשימת_שיעורים[שעת סיום]),רשימת_שיעורים[ייחודי]),רשימת_שיעורים[ייחודי],0),2),0)","v":"WR-121"},{"$f":"IFERROR(INDEX(רשימת_שיעורים[],MATCH(SUMPRODUCT((רשימת_שיעורים[יום]=לוח_זמנים_של_כיתה[[#Headers],[שלישי]])*(ROUNDDOWN($B27,10)>=ROUNDDOWN(רשימת_שיעורים[שעת התחלה],10))*($B27<=רשימת_שיעורים[שעת סיום]),רשימת_שיעורים[ייחודי]),רשימת_שיעורים[ייחודי],0),2),0)","v":0},{"$f":"IFERROR(INDEX(רשימת_שיעורים[],MATCH(SUMPRODUCT((רשימת_שיעורים[יום]=לוח_זמנים_של_כיתה[[#Headers],[רביעי]])*(ROUNDDOWN($B27,10)>=ROUNDDOWN(רשימת_שיעורים[שעת התחלה],10))*($B27<=רשימת_שיעורים[שעת סיום]),רשימת_שיעורים[ייחודי]),רשימת_שיעורים[ייחודי],0),2),0)","v":"WR-121"},{"$f":"IFERROR(INDEX(רשימת_שיעורים[],MATCH(SUMPRODUCT((רשימת_שיעורים[יום]=לוח_זמנים_של_כיתה[[#Headers],[חמישי]])*(ROUNDDOWN($B27,10)>=ROUNDDOWN(רשימת_שיעורים[שעת התחלה],10))*($B27<=רשימת_שיעורים[שעת סיום]),רשימת_שיעורים[ייחודי]),רשימת_שיעורים[ייחודי],0),2),0)","v":0},{"$f":"IFERROR(INDEX(רשימת_שיעורים[],MATCH(SUMPRODUCT((רשימת_שיעורים[יום]=לוח_זמנים_של_כיתה[[#Headers],[שישי]])*(ROUNDDOWN($B27,10)>=ROUNDDOWN(רשימת_שיעורים[שעת התחלה],10))*($B27<=רשימת_שיעורים[שעת סיום]),רשימת_שיעורים[ייחודי]),רשימת_שיעורים[ייחודי],0),2),0)","v":0},{"$f":"IFERROR(INDEX(רשימת_שיעורים[],MATCH(SUMPRODUCT((רשימת_שיעורים[יום]=לוח_זמנים_של_כיתה[[#Headers],[שבת]])*(ROUNDDOWN($B27,10)>=ROUNDDOWN(רשימת_שיעורים[שעת התחלה],10))*($B27<=רשימת_שיעורים[שעת סיום]),רשימת_שיעורים[ייחודי]),רשימת_שיעורים[ייחודי],0),2),0)","v":0}]
[null,"14:00:00",{"$f":"IFERROR(INDEX(רשימת_שיעורים[],MATCH(SUMPRODUCT((רשימת_שיעורים[יום]=לוח_זמנים_של_כיתה[[#Headers],[ראשון]])*(ROUNDDOWN($B28,10)>=ROUNDDOWN(רשימת_שיעורים[שעת התחלה],10))*($B28<=רשימת_שיעורים[שעת סיום]),רשימת_שיעורים[ייחודי]),רשימת_שיעורים[ייחודי],0),2),0)","v":0},{"$f":"IFERROR(INDEX(רשימת_שיעורים[],MATCH(SUMPRODUCT((רשימת_שיעורים[יום]=לוח_זמנים_של_כיתה[[#Headers],[שני]])*(ROUNDDOWN($B28,10)>=ROUNDDOWN(רשימת_שיעורים[שעת התחלה],10))*($B28<=רשימת_שיעורים[שעת סיום]),רשימת_שיעורים[ייחודי]),רשימת_שיעורים[ייחודי],0),2),0)","v":"WR-121"},{"$f":"IFERROR(INDEX(רשימת_שיעורים[],MATCH(SUMPRODUCT((רשימת_שיעורים[יום]=לוח_זמנים_של_כיתה[[#Headers],[שלישי]])*(ROUNDDOWN($B28,10)>=ROUNDDOWN(רשימת_שיעורים[שעת התחלה],10))*($B28<=רשימת_שיעורים[שעת סיום]),רשימת_שיעורים[ייחודי]),רשימת_שיעורים[ייחודי],0),2),0)","v":0},{"$f":"IFERROR(INDEX(רשימת_שיעורים[],MATCH(SUMPRODUCT((רשימת_שיעורים[יום]=לוח_זמנים_של_כיתה[[#Headers],[רביעי]])*(ROUNDDOWN($B28,10)>=ROUNDDOWN(רשימת_שיעורים[שעת התחלה],10))*($B28<=רשימת_שיעורים[שעת סיום]),רשימת_שיעורים[ייחודי]),רשימת_שיעורים[ייחודי],0),2),0)","v":"WR-121"},{"$f":"IFERROR(INDEX(רשימת_שיעורים[],MATCH(SUMPRODUCT((רשימת_שיעורים[יום]=לוח_זמנים_של_כיתה[[#Headers],[חמישי]])*(ROUNDDOWN($B28,10)>=ROUNDDOWN(רשימת_שיעורים[שעת התחלה],10))*($B28<=רשימת_שיעורים[שעת סיום]),רשימת_שיעורים[ייחודי]),רשימת_שיעורים[ייחודי],0),2),0)","v":0},{"$f":"IFERROR(INDEX(רשימת_שיעורים[],MATCH(SUMPRODUCT((רשימת_שיעורים[יום]=לוח_זמנים_של_כיתה[[#Headers],[שישי]])*(ROUNDDOWN($B28,10)>=ROUNDDOWN(רשימת_שיעורים[שעת התחלה],10))*($B28<=רשימת_שיעורים[שעת סיום]),רשימת_שיעורים[ייחודי]),רשימת_שיעורים[ייחודי],0),2),0)","v":0},{"$f":"IFERROR(INDEX(רשימת_שיעורים[],MATCH(SUMPRODUCT((רשימת_שיעורים[יום]=לוח_זמנים_של_כיתה[[#Headers],[שבת]])*(ROUNDDOWN($B28,10)>=ROUNDDOWN(רשימת_שיעורים[שעת התחלה],10))*($B28<=רשימת_שיעורים[שעת סיום]),רשימת_שיעורים[ייחודי]),רשימת_שיעורים[ייחודי],0),2),0)","v":0}]
[null,"14:15:00",{"$f":"IFERROR(INDEX(רשימת_שיעורים[],MATCH(SUMPRODUCT((רשימת_שיעורים[יום]=לוח_זמנים_של_כיתה[[#Headers],[ראשון]])*(ROUNDDOWN($B29,10)>=ROUNDDOWN(רשימת_שיעורים[שעת התחלה],10))*($B29<=רשימת_שיעורים[שעת סיום]),רשימת_שיעורים[ייחודי]),רשימת_שיעורים[ייחודי],0),2),0)","v":0},{"$f":"IFERROR(INDEX(רשימת_שיעורים[],MATCH(SUMPRODUCT((רשימת_שיעורים[יום]=לוח_זמנים_של_כיתה[[#Headers],[שני]])*(ROUNDDOWN($B29,10)>=ROUNDDOWN(רשימת_שיעורים[שעת התחלה],10))*($B29<=רשימת_שיעורים[שעת סיום]),רשימת_שיעורים[ייחודי]),רשימת_שיעורים[ייחודי],0),2),0)","v":0},{"$f":"IFERROR(INDEX(רשימת_שיעורים[],MATCH(SUMPRODUCT((רשימת_שיעורים[יום]=לוח_זמנים_של_כיתה[[#Headers],[שלישי]])*(ROUNDDOWN($B29,10)>=ROUNDDOWN(רשימת_שיעורים[שעת התחלה],10))*($B29<=רשימת_שיעורים[שעת סיום]),רשימת_שיעורים[ייחודי]),רשימת_שיעורים[ייחודי],0),2),0)","v":0},{"$f":"IFERROR(INDEX(רשימת_שיעורים[],MATCH(SUMPRODUCT((רשימת_שיעורים[יום]=לוח_זמנים_של_כיתה[[#Headers],[רביעי]])*(ROUNDDOWN($B29,10)>=ROUNDDOWN(רשימת_שיעורים[שעת התחלה],10))*($B29<=רשימת_שיעורים[שעת סיום]),רשימת_שיעורים[ייחודי]),רשימת_שיעורים[ייחודי],0),2),0)","v":0},{"$f":"IFERROR(INDEX(רשימת_שיעורים[],MATCH(SUMPRODUCT((רשימת_שיעורים[יום]=לוח_זמנים_של_כיתה[[#Headers],[חמישי]])*(ROUNDDOWN($B29,10)>=ROUNDDOWN(רשימת_שיעורים[שעת התחלה],10))*($B29<=רשימת_שיעורים[שעת סיום]),רשימת_שיעורים[ייחודי]),רשימת_שיעורים[ייחודי],0),2),0)","v":0},{"$f":"IFERROR(INDEX(רשימת_שיעורים[],MATCH(SUMPRODUCT((רשימת_שיעורים[יום]=לוח_זמנים_של_כיתה[[#Headers],[שישי]])*(ROUNDDOWN($B29,10)>=ROUNDDOWN(רשימת_שיעורים[שעת התחלה],10))*($B29<=רשימת_שיעורים[שעת סיום]),רשימת_שיעורים[ייחודי]),רשימת_שיעורים[ייחודי],0),2),0)","v":0},{"$f":"IFERROR(INDEX(רשימת_שיעורים[],MATCH(SUMPRODUCT((רשימת_שיעורים[יום]=לוח_זמנים_של_כיתה[[#Headers],[שבת]])*(ROUNDDOWN($B29,10)>=ROUNDDOWN(רשימת_שיעורים[שעת התחלה],10))*($B29<=רשימת_שיעורים[שעת סיום]),רשימת_שיעורים[ייחודי]),רשימת_שיעורים[ייחודי],0),2),0)","v":0}]
[null,"14:30:00",{"$f":"IFERROR(INDEX(רשימת_שיעורים[],MATCH(SUMPRODUCT((רשימת_שיעורים[יום]=לוח_זמנים_של_כיתה[[#Headers],[ראשון]])*(ROUNDDOWN($B30,10)>=ROUNDDOWN(רשימת_שיעורים[שעת התחלה],10))*($B30<=רשימת_שיעורים[שעת סיום]),רשימת_שיעורים[ייחודי]),רשימת_שיעורים[ייחודי],0),2),0)","v":0},{"$f":"IFERROR(INDEX(רשימת_שיעורים[],MATCH(SUMPRODUCT((רשימת_שיעורים[יום]=לוח_זמנים_של_כיתה[[#Headers],[שני]])*(ROUNDDOWN($B30,10)>=ROUNDDOWN(רשימת_שיעורים[שעת התחלה],10))*($B30<=רשימת_שיעורים[שעת סיום]),רשימת_שיעורים[ייחודי]),רשימת_שיעורים[ייחודי],0),2),0)","v":0},{"$f":"IFERROR(INDEX(רשימת_שיעורים[],MATCH(SUMPRODUCT((רשימת_שיעורים[יום]=לוח_זמנים_של_כיתה[[#Headers],[שלישי]])*(ROUNDDOWN($B30,10)>=ROUNDDOWN(רשימת_שיעורים[שעת התחלה],10))*($B30<=רשימת_שיעורים[שעת סיום]),רשימת_שיעורים[ייחודי]),רשימת_שיעורים[ייחודי],0),2),0)","v":0},{"$f":"IFERROR(INDEX(רשימת_שיעורים[],MATCH(SUMPRODUCT((רשימת_שיעורים[יום]=לוח_זמנים_של_כיתה[[#Headers],[רביעי]])*(ROUNDDOWN($B30,10)>=ROUNDDOWN(רשימת_שיעורים[שעת התחלה],10))*($B30<=רשימת_שיעורים[שעת סיום]),רשימת_שיעורים[ייחודי]),רשימת_שיעורים[ייחודי],0),2),0)","v":0},{"$f":"IFERROR(INDEX(רשימת_שיעורים[],MATCH(SUMPRODUCT((רשימת_שיעורים[יום]=לוח_זמנים_של_כיתה[[#Headers],[חמישי]])*(ROUNDDOWN($B30,10)>=ROUNDDOWN(רשימת_שיעורים[שעת התחלה],10))*($B30<=רשימת_שיעורים[שעת סיום]),רשימת_שיעורים[ייחודי]),רשימת_שיעורים[ייחודי],0),2),0)","v":0},{"$f":"IFERROR(INDEX(רשימת_שיעורים[],MATCH(SUMPRODUCT((רשימת_שיעורים[יום]=לוח_זמנים_של_כיתה[[#Headers],[שישי]])*(ROUNDDOWN($B30,10)>=ROUNDDOWN(רשימת_שיעורים[שעת התחלה],10))*($B30<=רשימת_שיעורים[שעת סיום]),רשימת_שיעורים[ייחודי]),רשימת_שיעורים[ייחודי],0),2),0)","v":0},{"$f":"IFERROR(INDEX(רשימת_שיעורים[],MATCH(SUMPRODUCT((רשימת_שיעורים[יום]=לוח_זמנים_של_כיתה[[#Headers],[שבת]])*(ROUNDDOWN($B30,10)>=ROUNDDOWN(רשימת_שיעורים[שעת התחלה],10))*($B30<=רשימת_שיעורים[שעת סיום]),רשימת_שיעורים[ייחודי]),רשימת_שיעורים[ייחודי],0),2),0)","v":0}]
[null,"14:45:00",{"$f":"IFERROR(INDEX(רשימת_שיעורים[],MATCH(SUMPRODUCT((רשימת_שיעורים[יום]=לוח_זמנים_של_כיתה[[#Headers],[ראשון]])*(ROUNDDOWN($B31,10)>=ROUNDDOWN(רשימת_שיעורים[שעת התחלה],10))*($B31<=רשימת_שיעורים[שעת סיום]),רשימת_שיעורים[ייחודי]),רשימת_שיעורים[ייחודי],0),2),0)","v":0},{"$f":"IFERROR(INDEX(רשימת_שיעורים[],MATCH(SUMPRODUCT((רשימת_שיעורים[יום]=לוח_זמנים_של_כיתה[[#Headers],[שני]])*(ROUNDDOWN($B31,10)>=ROUNDDOWN(רשימת_שיעורים[שעת התחלה],10))*($B31<=רשימת_שיעורים[שעת סיום]),רשימת_שיעורים[ייחודי]),רשימת_שיעורים[ייחודי],0),2),0)","v":0},{"$f":"IFERROR(INDEX(רשימת_שיעורים[],MATCH(SUMPRODUCT((רשימת_שיעורים[יום]=לוח_זמנים_של_כיתה[[#Headers],[שלישי]])*(ROUNDDOWN($B31,10)>=ROUNDDOWN(רשימת_שיעורים[שעת התחלה],10))*($B31<=רשימת_שיעורים[שעת סיום]),רשימת_שיעורים[ייחודי]),רשימת_שיעורים[ייחודי],0),2),0)","v":0},{"$f":"IFERROR(INDEX(רשימת_שיעורים[],MATCH(SUMPRODUCT((רשימת_שיעורים[יום]=לוח_זמנים_של_כיתה[[#Headers],[רביעי]])*(ROUNDDOWN($B31,10)>=ROUNDDOWN(רשימת_שיעורים[שעת התחלה],10))*($B31<=רשימת_שיעורים[שעת סיום]),רשימת_שיעורים[ייחודי]),רשימת_שיעורים[ייחודי],0),2),0)","v":0},{"$f":"IFERROR(INDEX(רשימת_שיעורים[],MATCH(SUMPRODUCT((רשימת_שיעורים[יום]=לוח_זמנים_של_כיתה[[#Headers],[חמישי]])*(ROUNDDOWN($B31,10)>=ROUNDDOWN(רשימת_שיעורים[שעת התחלה],10))*($B31<=רשימת_שיעורים[שעת סיום]),רשימת_שיעורים[ייחודי]),רשימת_שיעורים[ייחודי],0),2),0)","v":0},{"$f":"IFERROR(INDEX(רשימת_שיעורים[],MATCH(SUMPRODUCT((רשימת_שיעורים[יום]=לוח_זמנים_של_כיתה[[#Headers],[שישי]])*(ROUNDDOWN($B31,10)>=ROUNDDOWN(רשימת_שיעורים[שעת התחלה],10))*($B31<=רשימת_שיעורים[שעת סיום]),רשימת_שיעורים[ייחודי]),רשימת_שיעורים[ייחודי],0),2),0)","v":0},{"$f":"IFERROR(INDEX(רשימת_שיעורים[],MATCH(SUMPRODUCT((רשימת_שיעורים[יום]=לוח_זמנים_של_כיתה[[#Headers],[שבת]])*(ROUNDDOWN($B31,10)>=ROUNDDOWN(רשימת_שיעורים[שעת התחלה],10))*($B31<=רשימת_שיעורים[שעת סיום]),רשימת_שיעורים[ייחודי]),רשימת_שיעורים[ייחודי],0),2),0)","v":0}]
[null,"15:00:00",{"$f":"IFERROR(INDEX(רשימת_שיעורים[],MATCH(SUMPRODUCT((רשימת_שיעורים[יום]=לוח_זמנים_של_כיתה[[#Headers],[ראשון]])*(ROUNDDOWN($B32,10)>=ROUNDDOWN(רשימת_שיעורים[שעת התחלה],10))*($B32<=רשימת_שיעורים[שעת סיום]),רשימת_שיעורים[ייחודי]),רשימת_שיעורים[ייחודי],0),2),0)","v":0},{"$f":"IFERROR(INDEX(רשימת_שיעורים[],MATCH(SUMPRODUCT((רשימת_שיעורים[יום]=לוח_זמנים_של_כיתה[[#Headers],[שני]])*(ROUNDDOWN($B32,10)>=ROUNDDOWN(רשימת_שיעורים[שעת התחלה],10))*($B32<=רשימת_שיעורים[שעת סיום]),רשימת_שיעורים[ייחודי]),רשימת_שיעורים[ייחודי],0),2),0)","v":0},{"$f":"IFERROR(INDEX(רשימת_שיעורים[],MATCH(SUMPRODUCT((רשימת_שיעורים[יום]=לוח_זמנים_של_כיתה[[#Headers],[שלישי]])*(ROUNDDOWN($B32,10)>=ROUNDDOWN(רשימת_שיעורים[שעת התחלה],10))*($B32<=רשימת_שיעורים[שעת סיום]),רשימת_שיעורים[ייחודי]),רשימת_שיעורים[ייחודי],0),2),0)","v":0},{"$f":"IFERROR(INDEX(רשימת_שיעורים[],MATCH(SUMPRODUCT((רשימת_שיעורים[יום]=לוח_זמנים_של_כיתה[[#Headers],[רביעי]])*(ROUNDDOWN($B32,10)>=ROUNDDOWN(רשימת_שיעורים[שעת התחלה],10))*($B32<=רשימת_שיעורים[שעת סיום]),רשימת_שיעורים[ייחודי]),רשימת_שיעורים[ייחודי],0),2),0)","v":0},{"$f":"IFERROR(INDEX(רשימת_שיעורים[],MATCH(SUMPRODUCT((רשימת_שיעורים[יום]=לוח_זמנים_של_כיתה[[#Headers],[חמישי]])*(ROUNDDOWN($B32,10)>=ROUNDDOWN(רשימת_שיעורים[שעת התחלה],10))*($B32<=רשימת_שיעורים[שעת סיום]),רשימת_שיעורים[ייחודי]),רשימת_שיעורים[ייחודי],0),2),0)","v":0},{"$f":"IFERROR(INDEX(רשימת_שיעורים[],MATCH(SUMPRODUCT((רשימת_שיעורים[יום]=לוח_זמנים_של_כיתה[[#Headers],[שישי]])*(ROUNDDOWN($B32,10)>=ROUNDDOWN(רשימת_שיעורים[שעת התחלה],10))*($B32<=רשימת_שיעורים[שעת סיום]),רשימת_שיעורים[ייחודי]),רשימת_שיעורים[ייחודי],0),2),0)","v":0},{"$f":"IFERROR(INDEX(רשימת_שיעורים[],MATCH(SUMPRODUCT((רשימת_שיעורים[יום]=לוח_זמנים_של_כיתה[[#Headers],[שבת]])*(ROUNDDOWN($B32,10)>=ROUNDDOWN(רשימת_שיעורים[שעת התחלה],10))*($B32<=רשימת_שיעורים[שעת סיום]),רשימת_שיעורים[ייחודי]),רשימת_שיעורים[ייחודי],0),2),0)","v":0}]
[null,"15:15:00",{"$f":"IFERROR(INDEX(רשימת_שיעורים[],MATCH(SUMPRODUCT((רשימת_שיעורים[יום]=לוח_זמנים_של_כיתה[[#Headers],[ראשון]])*(ROUNDDOWN($B33,10)>=ROUNDDOWN(רשימת_שיעורים[שעת התחלה],10))*($B33<=רשימת_שיעורים[שעת סיום]),רשימת_שיעורים[ייחודי]),רשימת_שיעורים[ייחודי],0),2),0)","v":0},{"$f":"IFERROR(INDEX(רשימת_שיעורים[],MATCH(SUMPRODUCT((רשימת_שיעורים[יום]=לוח_זמנים_של_כיתה[[#Headers],[שני]])*(ROUNDDOWN($B33,10)>=ROUNDDOWN(רשימת_שיעורים[שעת התחלה],10))*($B33<=רשימת_שיעורים[שעת סיום]),רשימת_שיעורים[ייחודי]),רשימת_שיעורים[ייחודי],0),2),0)","v":0},{"$f":"IFERROR(INDEX(רשימת_שיעורים[],MATCH(SUMPRODUCT((רשימת_שיעורים[יום]=לוח_זמנים_של_כיתה[[#Headers],[שלישי]])*(ROUNDDOWN($B33,10)>=ROUNDDOWN(רשימת_שיעורים[שעת התחלה],10))*($B33<=רשימת_שיעורים[שעת סיום]),רשימת_שיעורים[ייחודי]),רשימת_שיעורים[ייחודי],0),2),0)","v":0},{"$f":"IFERROR(INDEX(רשימת_שיעורים[],MATCH(SUMPRODUCT((רשימת_שיעורים[יום]=לוח_זמנים_של_כיתה[[#Headers],[רביעי]])*(ROUNDDOWN($B33,10)>=ROUNDDOWN(רשימת_שיעורים[שעת התחלה],10))*($B33<=רשימת_שיעורים[שעת סיום]),רשימת_שיעורים[ייחודי]),רשימת_שיעורים[ייחודי],0),2),0)","v":0},{"$f":"IFERROR(INDEX(רשימת_שיעורים[],MATCH(SUMPRODUCT((רשימת_שיעורים[יום]=לוח_זמנים_של_כיתה[[#Headers],[חמישי]])*(ROUNDDOWN($B33,10)>=ROUNDDOWN(רשימת_שיעורים[שעת התחלה],10))*($B33<=רשימת_שיעורים[שעת סיום]),רשימת_שיעורים[ייחודי]),רשימת_שיעורים[ייחודי],0),2),0)","v":0},{"$f":"IFERROR(INDEX(רשימת_שיעורים[],MATCH(SUMPRODUCT((רשימת_שיעורים[יום]=לוח_זמנים_של_כיתה[[#Headers],[שישי]])*(ROUNDDOWN($B33,10)>=ROUNDDOWN(רשימת_שיעורים[שעת התחלה],10))*($B33<=רשימת_שיעורים[שעת סיום]),רשימת_שיעורים[ייחודי]),רשימת_שיעורים[ייחודי],0),2),0)","v":0},{"$f":"IFERROR(INDEX(רשימת_שיעורים[],MATCH(SUMPRODUCT((רשימת_שיעורים[יום]=לוח_זמנים_של_כיתה[[#Headers],[שבת]])*(ROUNDDOWN($B33,10)>=ROUNDDOWN(רשימת_שיעורים[שעת התחלה],10))*($B33<=רשימת_שיעורים[שעת סיום]),רשימת_שיעורים[ייחודי]),רשימת_שיעורים[ייחודי],0),2),0)","v":0}]
[null,"15:30:00",{"$f":"IFERROR(INDEX(רשימת_שיעורים[],MATCH(SUMPRODUCT((רשימת_שיעורים[יום]=לוח_זמנים_של_כיתה[[#Headers],[ראשון]])*(ROUNDDOWN($B34,10)>=ROUNDDOWN(רשימת_שיעורים[שעת התחלה],10))*($B34<=רשימת_שיעורים[שעת סיום]),רשימת_שיעורים[ייחודי]),רשימת_שיעורים[ייחודי],0),2),0)","v":0},{"$f":"IFERROR(INDEX(רשימת_שיעורים[],MATCH(SUMPRODUCT((רשימת_שיעורים[יום]=לוח_זמנים_של_כיתה[[#Headers],[שני]])*(ROUNDDOWN($B34,10)>=ROUNDDOWN(רשימת_שיעורים[שעת התחלה],10))*($B34<=רשימת_שיעורים[שעת סיום]),רשימת_שיעורים[ייחודי]),רשימת_שיעורים[ייחודי],0),2),0)","v":0},{"$f":"IFERROR(INDEX(רשימת_שיעורים[],MATCH(SUMPRODUCT((רשימת_שיעורים[יום]=לוח_זמנים_של_כיתה[[#Headers],[שלישי]])*(ROUNDDOWN($B34,10)>=ROUNDDOWN(רשימת_שיעורים[שעת התחלה],10))*($B34<=רשימת_שיעורים[שעת סיום]),רשימת_שיעורים[ייחודי]),רשימת_שיעורים[ייחודי],0),2),0)","v":0},{"$f":"IFERROR(INDEX(רשימת_שיעורים[],MATCH(SUMPRODUCT((רשימת_שיעורים[יום]=לוח_זמנים_של_כיתה[[#Headers],[רביעי]])*(ROUNDDOWN($B34,10)>=ROUNDDOWN(רשימת_שיעורים[שעת התחלה],10))*($B34<=רשימת_שיעורים[שעת סיום]),רשימת_שיעורים[ייחודי]),רשימת_שיעורים[ייחודי],0),2),0)","v":0},{"$f":"IFERROR(INDEX(רשימת_שיעורים[],MATCH(SUMPRODUCT((רשימת_שיעורים[יום]=לוח_זמנים_של_כיתה[[#Headers],[חמישי]])*(ROUNDDOWN($B34,10)>=ROUNDDOWN(רשימת_שיעורים[שעת התחלה],10))*($B34<=רשימת_שיעורים[שעת סיום]),רשימת_שיעורים[ייחודי]),רשימת_שיעורים[ייחודי],0),2),0)","v":0},{"$f":"IFERROR(INDEX(רשימת_שיעורים[],MATCH(SUMPRODUCT((רשימת_שיעורים[יום]=לוח_זמנים_של_כיתה[[#Headers],[שישי]])*(ROUNDDOWN($B34,10)>=ROUNDDOWN(רשימת_שיעורים[שעת התחלה],10))*($B34<=רשימת_שיעורים[שעת סיום]),רשימת_שיעורים[ייחודי]),רשימת_שיעורים[ייחודי],0),2),0)","v":0},{"$f":"IFERROR(INDEX(רשימת_שיעורים[],MATCH(SUMPRODUCT((רשימת_שיעורים[יום]=לוח_זמנים_של_כיתה[[#Headers],[שבת]])*(ROUNDDOWN($B34,10)>=ROUNDDOWN(רשימת_שיעורים[שעת התחלה],10))*($B34<=רשימת_שיעורים[שעת סיום]),רשימת_שיעורים[ייחודי]),רשימת_שיעורים[ייחודי],0),2),0)","v":0}]
[null,"15:45:00",{"$f":"IFERROR(INDEX(רשימת_שיעורים[],MATCH(SUMPRODUCT((רשימת_שיעורים[יום]=לוח_זמנים_של_כיתה[[#Headers],[ראשון]])*(ROUNDDOWN($B35,10)>=ROUNDDOWN(רשימת_שיעורים[שעת התחלה],10))*($B35<=רשימת_שיעורים[שעת סיום]),רשימת_שיעורים[ייחודי]),רשימת_שיעורים[ייחודי],0),2),0)","v":0},{"$f":"IFERROR(INDEX(רשימת_שיעורים[],MATCH(SUMPRODUCT((רשימת_שיעורים[יום]=לוח_זמנים_של_כיתה[[#Headers],[שני]])*(ROUNDDOWN($B35,10)>=ROUNDDOWN(רשימת_שיעורים[שעת התחלה],10))*($B35<=רשימת_שיעורים[שעת סיום]),רשימת_שיעורים[ייחודי]),רשימת_שיעורים[ייחודי],0),2),0)","v":0},{"$f":"IFERROR(INDEX(רשימת_שיעורים[],MATCH(SUMPRODUCT((רשימת_שיעורים[יום]=לוח_זמנים_של_כיתה[[#Headers],[שלישי]])*(ROUNDDOWN($B35,10)>=ROUNDDOWN(רשימת_שיעורים[שעת התחלה],10))*($B35<=רשימת_שיעורים[שעת סיום]),רשימת_שיעורים[ייחודי]),רשימת_שיעורים[ייחודי],0),2),0)","v":0},{"$f":"IFERROR(INDEX(רשימת_שיעורים[],MATCH(SUMPRODUCT((רשימת_שיעורים[יום]=לוח_זמנים_של_כיתה[[#Headers],[רביעי]])*(ROUNDDOWN($B35,10)>=ROUNDDOWN(רשימת_שיעורים[שעת התחלה],10))*($B35<=רשימת_שיעורים[שעת סיום]),רשימת_שיעורים[ייחודי]),רשימת_שיעורים[ייחודי],0),2),0)","v":0},{"$f":"IFERROR(INDEX(רשימת_שיעורים[],MATCH(SUMPRODUCT((רשימת_שיעורים[יום]=לוח_זמנים_של_כיתה[[#Headers],[חמישי]])*(ROUNDDOWN($B35,10)>=ROUNDDOWN(רשימת_שיעורים[שעת התחלה],10))*($B35<=רשימת_שיעורים[שעת סיום]),רשימת_שיעורים[ייחודי]),רשימת_שיעורים[ייחודי],0),2),0)","v":0},{"$f":"IFERROR(INDEX(רשימת_שיעורים[],MATCH(SUMPRODUCT((רשימת_שיעורים[יום]=לוח_זמנים_של_כיתה[[#Headers],[שישי]])*(ROUNDDOWN($B35,10)>=ROUNDDOWN(רשימת_שיעורים[שעת התחלה],10))*($B35<=רשימת_שיעורים[שעת סיום]),רשימת_שיעורים[ייחודי]),רשימת_שיעורים[ייחודי],0),2),0)","v":0},{"$f":"IFERROR(INDEX(רשימת_שיעורים[],MATCH(SUMPRODUCT((רשימת_שיעורים[יום]=לוח_זמנים_של_כיתה[[#Headers],[שבת]])*(ROUNDDOWN($B35,10)>=ROUNDDOWN(רשימת_שיעורים[שעת התחלה],10))*($B35<=רשימת_שיעורים[שעת סיום]),רשימת_שיעורים[ייחודי]),רשימת_שיעורים[ייחודי],0),2),0)","v":0}]
[null,"16:00:00",{"$f":"IFERROR(INDEX(רשימת_שיעורים[],MATCH(SUMPRODUCT((רשימת_שיעורים[יום]=לוח_זמנים_של_כיתה[[#Headers],[ראשון]])*(ROUNDDOWN($B36,10)>=ROUNDDOWN(רשימת_שיעורים[שעת התחלה],10))*($B36<=רשימת_שיעורים[שעת סיום]),רשימת_שיעורים[ייחודי]),רשימת_שיעורים[ייחודי],0),2),0)","v":0},{"$f":"IFERROR(INDEX(רשימת_שיעורים[],MATCH(SUMPRODUCT((רשימת_שיעורים[יום]=לוח_זמנים_של_כיתה[[#Headers],[שני]])*(ROUNDDOWN($B36,10)>=ROUNDDOWN(רשימת_שיעורים[שעת התחלה],10))*($B36<=רשימת_שיעורים[שעת סיום]),רשימת_שיעורים[ייחודי]),רשימת_שיעורים[ייחודי],0),2),0)","v":"SP-111"},{"$f":"IFERROR(INDEX(רשימת_שיעורים[],MATCH(SUMPRODUCT((רשימת_שיעורים[יום]=לוח_זמנים_של_כיתה[[#Headers],[שלישי]])*(ROUNDDOWN($B36,10)>=ROUNDDOWN(רשימת_שיעורים[שעת התחלה],10))*($B36<=רשימת_שיעורים[שעת סיום]),רשימת_שיעורים[ייחודי]),רשימת_שיעורים[ייחודי],0),2),0)","v":0},{"$f":"IFERROR(INDEX(רשימת_שיעורים[],MATCH(SUMPRODUCT((רשימת_שיעורים[יום]=לוח_זמנים_של_כיתה[[#Headers],[רביעי]])*(ROUNDDOWN($B36,10)>=ROUNDDOWN(רשימת_שיעורים[שעת התחלה],10))*($B36<=רשימת_שיעורים[שעת סיום]),רשימת_שיעורים[ייחודי]),רשימת_שיעורים[ייחודי],0),2),0)","v":0},{"$f":"IFERROR(INDEX(רשימת_שיעורים[],MATCH(SUMPRODUCT((רשימת_שיעורים[יום]=לוח_זמנים_של_כיתה[[#Headers],[חמישי]])*(ROUNDDOWN($B36,10)>=ROUNDDOWN(רשימת_שיעורים[שעת התחלה],10))*($B36<=רשימת_שיעורים[שעת סיום]),רשימת_שיעורים[ייחודי]),רשימת_שיעורים[ייחודי],0),2),0)","v":0},{"$f":"IFERROR(INDEX(רשימת_שיעורים[],MATCH(SUMPRODUCT((רשימת_שיעורים[יום]=לוח_זמנים_של_כיתה[[#Headers],[שישי]])*(ROUNDDOWN($B36,10)>=ROUNDDOWN(רשימת_שיעורים[שעת התחלה],10))*($B36<=רשימת_שיעורים[שעת סיום]),רשימת_שיעורים[ייחודי]),רשימת_שיעורים[ייחודי],0),2),0)","v":0},{"$f":"IFERROR(INDEX(רשימת_שיעורים[],MATCH(SUMPRODUCT((רשימת_שיעורים[יום]=לוח_זמנים_של_כיתה[[#Headers],[שבת]])*(ROUNDDOWN($B36,10)>=ROUNDDOWN(רשימת_שיעורים[שעת התחלה],10))*($B36<=רשימת_שיעורים[שעת סיום]),רשימת_שיעורים[ייחודי]),רשימת_שיעורים[ייחודי],0),2),0)","v":0}]
[null,{"$f":"B36+הפרש_קבוע","v":"16:15:00"},{"$f":"IFERROR(INDEX(רשימת_שיעורים[],MATCH(SUMPRODUCT((רשימת_שיעורים[יום]=לוח_זמנים_של_כיתה[[#Headers],[ראשון]])*(ROUNDDOWN($B37,10)>=ROUNDDOWN(רשימת_שיעורים[שעת התחלה],10))*($B37<=רשימת_שיעורים[שעת סיום]),רשימת_שיעורים[ייחודי]),רשימת_שיעורים[ייחודי],0),2),0)","v":0},{"$f":"IFERROR(INDEX(רשימת_שיעורים[],MATCH(SUMPRODUCT((רשימת_שיעורים[יום]=לוח_זמנים_של_כיתה[[#Headers],[שני]])*(ROUNDDOWN($B37,10)>=ROUNDDOWN(רשימת_שיעורים[שעת התחלה],10))*($B37<=רשימת_שיעורים[שעת סיום]),רשימת_שיעורים[ייחודי]),רשימת_שיעורים[ייחודי],0),2),0)","v":"SP-111"},{"$f":"IFERROR(INDEX(רשימת_שיעורים[],MATCH(SUMPRODUCT((רשימת_שיעורים[יום]=לוח_זמנים_של_כיתה[[#Headers],[שלישי]])*(ROUNDDOWN($B37,10)>=ROUNDDOWN(רשימת_שיעורים[שעת התחלה],10))*($B37<=רשימת_שיעורים[שעת סיום]),רשימת_שיעורים[ייחודי]),רשימת_שיעורים[ייחודי],0),2),0)","v":0},{"$f":"IFERROR(INDEX(רשימת_שיעורים[],MATCH(SUMPRODUCT((רשימת_שיעורים[יום]=לוח_זמנים_של_כיתה[[#Headers],[רביעי]])*(ROUNDDOWN($B37,10)>=ROUNDDOWN(רשימת_שיעורים[שעת התחלה],10))*($B37<=רשימת_שיעורים[שעת סיום]),רשימת_שיעורים[ייחודי]),רשימת_שיעורים[ייחודי],0),2),0)","v":0},{"$f":"IFERROR(INDEX(רשימת_שיעורים[],MATCH(SUMPRODUCT((רשימת_שיעורים[יום]=לוח_זמנים_של_כיתה[[#Headers],[חמישי]])*(ROUNDDOWN($B37,10)>=ROUNDDOWN(רשימת_שיעורים[שעת התחלה],10))*($B37<=רשימת_שיעורים[שעת סיום]),רשימת_שיעורים[ייחודי]),רשימת_שיעורים[ייחודי],0),2),0)","v":0},{"$f":"IFERROR(INDEX(רשימת_שיעורים[],MATCH(SUMPRODUCT((רשימת_שיעורים[יום]=לוח_זמנים_של_כיתה[[#Headers],[שישי]])*(ROUNDDOWN($B37,10)>=ROUNDDOWN(רשימת_שיעורים[שעת התחלה],10))*($B37<=רשימת_שיעורים[שעת סיום]),רשימת_שיעורים[ייחודי]),רשימת_שיעורים[ייחודי],0),2),0)","v":0},{"$f":"IFERROR(INDEX(רשימת_שיעורים[],MATCH(SUMPRODUCT((רשימת_שיעורים[יום]=לוח_זמנים_של_כיתה[[#Headers],[שבת]])*(ROUNDDOWN($B37,10)>=ROUNDDOWN(רשימת_שיעורים[שעת התחלה],10))*($B37<=רשימת_שיעורים[שעת סיום]),רשימת_שיעורים[ייחודי]),רשימת_שיעורים[ייחודי],0),2),0)","v":0}]
[null,"16:30:00",{"$f":"IFERROR(INDEX(רשימת_שיעורים[],MATCH(SUMPRODUCT((רשימת_שיעורים[יום]=לוח_זמנים_של_כיתה[[#Headers],[ראשון]])*(ROUNDDOWN($B38,10)>=ROUNDDOWN(רשימת_שיעורים[שעת התחלה],10))*($B38<=רשימת_שיעורים[שעת סיום]),רשימת_שיעורים[ייחודי]),רשימת_שיעורים[ייחודי],0),2),0)","v":0},{"$f":"IFERROR(INDEX(רשימת_שיעורים[],MATCH(SUMPRODUCT((רשימת_שיעורים[יום]=לוח_זמנים_של_כיתה[[#Headers],[שני]])*(ROUNDDOWN($B38,10)>=ROUNDDOWN(רשימת_שיעורים[שעת התחלה],10))*($B38<=רשימת_שיעורים[שעת סיום]),רשימת_שיעורים[ייחודי]),רשימת_שיעורים[ייחודי],0),2),0)","v":"SP-111"},{"$f":"IFERROR(INDEX(רשימת_שיעורים[],MATCH(SUMPRODUCT((רשימת_שיעורים[יום]=לוח_זמנים_של_כיתה[[#Headers],[שלישי]])*(ROUNDDOWN($B38,10)>=ROUNDDOWN(רשימת_שיעורים[שעת התחלה],10))*($B38<=רשימת_שיעורים[שעת סיום]),רשימת_שיעורים[ייחודי]),רשימת_שיעורים[ייחודי],0),2),0)","v":0},{"$f":"IFERROR(INDEX(רשימת_שיעורים[],MATCH(SUMPRODUCT((רשימת_שיעורים[יום]=לוח_זמנים_של_כיתה[[#Headers],[רביעי]])*(ROUNDDOWN($B38,10)>=ROUNDDOWN(רשימת_שיעורים[שעת התחלה],10))*($B38<=רשימת_שיעורים[שעת סיום]),רשימת_שיעורים[ייחודי]),רשימת_שיעורים[ייחודי],0),2),0)","v":0},{"$f":"IFERROR(INDEX(רשימת_שיעורים[],MATCH(SUMPRODUCT((רשימת_שיעורים[יום]=לוח_זמנים_של_כיתה[[#Headers],[חמישי]])*(ROUNDDOWN($B38,10)>=ROUNDDOWN(רשימת_שיעורים[שעת התחלה],10))*($B38<=רשימת_שיעורים[שעת סיום]),רשימת_שיעורים[ייחודי]),רשימת_שיעורים[ייחודי],0),2),0)","v":0},{"$f":"IFERROR(INDEX(רשימת_שיעורים[],MATCH(SUMPRODUCT((רשימת_שיעורים[יום]=לוח_זמנים_של_כיתה[[#Headers],[שישי]])*(ROUNDDOWN($B38,10)>=ROUNDDOWN(רשימת_שיעורים[שעת התחלה],10))*($B38<=רשימת_שיעורים[שעת סיום]),רשימת_שיעורים[ייחודי]),רשימת_שיעורים[ייחודי],0),2),0)","v":0},{"$f":"IFERROR(INDEX(רשימת_שיעורים[],MATCH(SUMPRODUCT((רשימת_שיעורים[יום]=לוח_זמנים_של_כיתה[[#Headers],[שבת]])*(ROUNDDOWN($B38,10)>=ROUNDDOWN(רשימת_שיעורים[שעת התחלה],10))*($B38<=רשימת_שיעורים[שעת סיום]),רשימת_שיעורים[ייחודי]),רשימת_שיעורים[ייחודי],0),2),0)","v":0}]
[null,"16:45:00",{"$f":"IFERROR(INDEX(רשימת_שיעורים[],MATCH(SUMPRODUCT((רשימת_שיעורים[יום]=לוח_זמנים_של_כיתה[[#Headers],[ראשון]])*(ROUNDDOWN($B39,10)>=ROUNDDOWN(רשימת_שיעורים[שעת התחלה],10))*($B39<=רשימת_שיעורים[שעת סיום]),רשימת_שיעורים[ייחודי]),רשימת_שיעורים[ייחודי],0),2),0)","v":0},{"$f":"IFERROR(INDEX(רשימת_שיעורים[],MATCH(SUMPRODUCT((רשימת_שיעורים[יום]=לוח_זמנים_של_כיתה[[#Headers],[שני]])*(ROUNDDOWN($B39,10)>=ROUNDDOWN(רשימת_שיעורים[שעת התחלה],10))*($B39<=רשימת_שיעורים[שעת סיום]),רשימת_שיעורים[ייחודי]),רשימת_שיעורים[ייחודי],0),2),0)","v":"SP-111"},{"$f":"IFERROR(INDEX(רשימת_שיעורים[],MATCH(SUMPRODUCT((רשימת_שיעורים[יום]=לוח_זמנים_של_כיתה[[#Headers],[שלישי]])*(ROUNDDOWN($B39,10)>=ROUNDDOWN(רשימת_שיעורים[שעת התחלה],10))*($B39<=רשימת_שיעורים[שעת סיום]),רשימת_שיעורים[ייחודי]),רשימת_שיעורים[ייחודי],0),2),0)","v":0},{"$f":"IFERROR(INDEX(רשימת_שיעורים[],MATCH(SUMPRODUCT((רשימת_שיעורים[יום]=לוח_זמנים_של_כיתה[[#Headers],[רביעי]])*(ROUNDDOWN($B39,10)>=ROUNDDOWN(רשימת_שיעורים[שעת התחלה],10))*($B39<=רשימת_שיעורים[שעת סיום]),רשימת_שיעורים[ייחודי]),רשימת_שיעורים[ייחודי],0),2),0)","v":0},{"$f":"IFERROR(INDEX(רשימת_שיעורים[],MATCH(SUMPRODUCT((רשימת_שיעורים[יום]=לוח_זמנים_של_כיתה[[#Headers],[חמישי]])*(ROUNDDOWN($B39,10)>=ROUNDDOWN(רשימת_שיעורים[שעת התחלה],10))*($B39<=רשימת_שיעורים[שעת סיום]),רשימת_שיעורים[ייחודי]),רשימת_שיעורים[ייחודי],0),2),0)","v":0},{"$f":"IFERROR(INDEX(רשימת_שיעורים[],MATCH(SUMPRODUCT((רשימת_שיעורים[יום]=לוח_זמנים_של_כיתה[[#Headers],[שישי]])*(ROUNDDOWN($B39,10)>=ROUNDDOWN(רשימת_שיעורים[שעת התחלה],10))*($B39<=רשימת_שיעורים[שעת סיום]),רשימת_שיעורים[ייחודי]),רשימת_שיעורים[ייחודי],0),2),0)","v":0},{"$f":"IFERROR(INDEX(רשימת_שיעורים[],MATCH(SUMPRODUCT((רשימת_שיעורים[יום]=לוח_זמנים_של_כיתה[[#Headers],[שבת]])*(ROUNDDOWN($B39,10)>=ROUNDDOWN(רשימת_שיעורים[שעת התחלה],10))*($B39<=רשימת_שיעורים[שעת סיום]),רשימת_שיעורים[ייחודי]),רשימת_שיעורים[ייחודי],0),2),0)","v":0}]
[null,"17:00:00",{"$f":"IFERROR(INDEX(רשימת_שיעורים[],MATCH(SUMPRODUCT((רשימת_שיעורים[יום]=לוח_זמנים_של_כיתה[[#Headers],[ראשון]])*(ROUNDDOWN($B40,10)>=ROUNDDOWN(רשימת_שיעורים[שעת התחלה],10))*($B40<=רשימת_שיעורים[שעת סיום]),רשימת_שיעורים[ייחודי]),רשימת_שיעורים[ייחודי],0),2),0)","v":0},{"$f":"IFERROR(INDEX(רשימת_שיעורים[],MATCH(SUMPRODUCT((רשימת_שיעורים[יום]=לוח_זמנים_של_כיתה[[#Headers],[שני]])*(ROUNDDOWN($B40,10)>=ROUNDDOWN(רשימת_שיעורים[שעת התחלה],10))*($B40<=רשימת_שיעורים[שעת סיום]),רשימת_שיעורים[ייחודי]),רשימת_שיעורים[ייחודי],0),2),0)","v":"SP-111"},{"$f":"IFERROR(INDEX(רשימת_שיעורים[],MATCH(SUMPRODUCT((רשימת_שיעורים[יום]=לוח_זמנים_של_כיתה[[#Headers],[שלישי]])*(ROUNDDOWN($B40,10)>=ROUNDDOWN(רשימת_שיעורים[שעת התחלה],10))*($B40<=רשימת_שיעורים[שעת סיום]),רשימת_שיעורים[ייחודי]),רשימת_שיעורים[ייחודי],0),2),0)","v":0},{"$f":"IFERROR(INDEX(רשימת_שיעורים[],MATCH(SUMPRODUCT((רשימת_שיעורים[יום]=לוח_זמנים_של_כיתה[[#Headers],[רביעי]])*(ROUNDDOWN($B40,10)>=ROUNDDOWN(רשימת_שיעורים[שעת התחלה],10))*($B40<=רשימת_שיעורים[שעת סיום]),רשימת_שיעורים[ייחודי]),רשימת_שיעורים[ייחודי],0),2),0)","v":0},{"$f":"IFERROR(INDEX(רשימת_שיעורים[],MATCH(SUMPRODUCT((רשימת_שיעורים[יום]=לוח_זמנים_של_כיתה[[#Headers],[חמישי]])*(ROUNDDOWN($B40,10)>=ROUNDDOWN(רשימת_שיעורים[שעת התחלה],10))*($B40<=רשימת_שיעורים[שעת סיום]),רשימת_שיעורים[ייחודי]),רשימת_שיעורים[ייחודי],0),2),0)","v":0},{"$f":"IFERROR(INDEX(רשימת_שיעורים[],MATCH(SUMPRODUCT((רשימת_שיעורים[יום]=לוח_זמנים_של_כיתה[[#Headers],[שישי]])*(ROUNDDOWN($B40,10)>=ROUNDDOWN(רשימת_שיעורים[שעת התחלה],10))*($B40<=רשימת_שיעורים[שעת סיום]),רשימת_שיעורים[ייחודי]),רשימת_שיעורים[ייחודי],0),2),0)","v":0},{"$f":"IFERROR(INDEX(רשימת_שיעורים[],MATCH(SUMPRODUCT((רשימת_שיעורים[יום]=לוח_זמנים_של_כיתה[[#Headers],[שבת]])*(ROUNDDOWN($B40,10)>=ROUNDDOWN(רשימת_שיעורים[שעת התחלה],10))*($B40<=רשימת_שיעורים[שעת סיום]),רשימת_שיעורים[ייחודי]),רשימת_שיעורים[ייחודי],0),2),0)","v":0}]
[null,"17:15:00",{"$f":"IFERROR(INDEX(רשימת_שיעורים[],MATCH(SUMPRODUCT((רשימת_שיעורים[יום]=לוח_זמנים_של_כיתה[[#Headers],[ראשון]])*(ROUNDDOWN($B41,10)>=ROUNDDOWN(רשימת_שיעורים[שעת התחלה],10))*($B41<=רשימת_שיעורים[שעת סיום]),רשימת_שיעורים[ייחודי]),רשימת_שיעורים[ייחודי],0),2),0)","v":0},{"$f":"IFERROR(INDEX(רשימת_שיעורים[],MATCH(SUMPRODUCT((רשימת_שיעורים[יום]=לוח_זמנים_של_כיתה[[#Headers],[שני]])*(ROUNDDOWN($B41,10)>=ROUNDDOWN(רשימת_שיעורים[שעת התחלה],10))*($B41<=רשימת_שיעורים[שעת סיום]),רשימת_שיעורים[ייחודי]),רשימת_שיעורים[ייחודי],0),2),0)","v":0},{"$f":"IFERROR(INDEX(רשימת_שיעורים[],MATCH(SUMPRODUCT((רשימת_שיעורים[יום]=לוח_זמנים_של_כיתה[[#Headers],[שלישי]])*(ROUNDDOWN($B41,10)>=ROUNDDOWN(רשימת_שיעורים[שעת התחלה],10))*($B41<=רשימת_שיעורים[שעת סיום]),רשימת_שיעורים[ייחודי]),רשימת_שיעורים[ייחודי],0),2),0)","v":0},{"$f":"IFERROR(INDEX(רשימת_שיעורים[],MATCH(SUMPRODUCT((רשימת_שיעורים[יום]=לוח_זמנים_של_כיתה[[#Headers],[רביעי]])*(ROUNDDOWN($B41,10)>=ROUNDDOWN(רשימת_שיעורים[שעת התחלה],10))*($B41<=רשימת_שיעורים[שעת סיום]),רשימת_שיעורים[ייחודי]),רשימת_שיעורים[ייחודי],0),2),0)","v":0},{"$f":"IFERROR(INDEX(רשימת_שיעורים[],MATCH(SUMPRODUCT((רשימת_שיעורים[יום]=לוח_זמנים_של_כיתה[[#Headers],[חמישי]])*(ROUNDDOWN($B41,10)>=ROUNDDOWN(רשימת_שיעורים[שעת התחלה],10))*($B41<=רשימת_שיעורים[שעת סיום]),רשימת_שיעורים[ייחודי]),רשימת_שיעורים[ייחודי],0),2),0)","v":0},{"$f":"IFERROR(INDEX(רשימת_שיעורים[],MATCH(SUMPRODUCT((רשימת_שיעורים[יום]=לוח_זמנים_של_כיתה[[#Headers],[שישי]])*(ROUNDDOWN($B41,10)>=ROUNDDOWN(רשימת_שיעורים[שעת התחלה],10))*($B41<=רשימת_שיעורים[שעת סיום]),רשימת_שיעורים[ייחודי]),רשימת_שיעורים[ייחודי],0),2),0)","v":0},{"$f":"IFERROR(INDEX(רשימת_שיעורים[],MATCH(SUMPRODUCT((רשימת_שיעורים[יום]=לוח_זמנים_של_כיתה[[#Headers],[שבת]])*(ROUNDDOWN($B41,10)>=ROUNDDOWN(רשימת_שיעורים[שעת התחלה],10))*($B41<=רשימת_שיעורים[שעת סיום]),רשימת_שיעורים[ייחודי]),רשימת_שיעורים[ייחודי],0),2),0)","v":0}]
[null,"17:30:00",{"$f":"IFERROR(INDEX(רשימת_שיעורים[],MATCH(SUMPRODUCT((רשימת_שיעורים[יום]=לוח_זמנים_של_כיתה[[#Headers],[ראשון]])*(ROUNDDOWN($B42,10)>=ROUNDDOWN(רשימת_שיעורים[שעת התחלה],10))*($B42<=רשימת_שיעורים[שעת סיום]),רשימת_שיעורים[ייחודי]),רשימת_שיעורים[ייחודי],0),2),0)","v":0},{"$f":"IFERROR(INDEX(רשימת_שיעורים[],MATCH(SUMPRODUCT((רשימת_שיעורים[יום]=לוח_זמנים_של_כיתה[[#Headers],[שני]])*(ROUNDDOWN($B42,10)>=ROUNDDOWN(רשימת_שיעורים[שעת התחלה],10))*($B42<=רשימת_שיעורים[שעת סיום]),רשימת_שיעורים[ייחודי]),רשימת_שיעורים[ייחודי],0),2),0)","v":0},{"$f":"IFERROR(INDEX(רשימת_שיעורים[],MATCH(SUMPRODUCT((רשימת_שיעורים[יום]=לוח_זמנים_של_כיתה[[#Headers],[שלישי]])*(ROUNDDOWN($B42,10)>=ROUNDDOWN(רשימת_שיעורים[שעת התחלה],10))*($B42<=רשימת_שיעורים[שעת סיום]),רשימת_שיעורים[ייחודי]),רשימת_שיעורים[ייחודי],0),2),0)","v":0},{"$f":"IFERROR(INDEX(רשימת_שיעורים[],MATCH(SUMPRODUCT((רשימת_שיעורים[יום]=לוח_זמנים_של_כיתה[[#Headers],[רביעי]])*(ROUNDDOWN($B42,10)>=ROUNDDOWN(רשימת_שיעורים[שעת התחלה],10))*($B42<=רשימת_שיעורים[שעת סיום]),רשימת_שיעורים[ייחודי]),רשימת_שיעורים[ייחודי],0),2),0)","v":0},{"$f":"IFERROR(INDEX(רשימת_שיעורים[],MATCH(SUMPRODUCT((רשימת_שיעורים[יום]=לוח_זמנים_של_כיתה[[#Headers],[חמישי]])*(ROUNDDOWN($B42,10)>=ROUNDDOWN(רשימת_שיעורים[שעת התחלה],10))*($B42<=רשימת_שיעורים[שעת סיום]),רשימת_שיעורים[ייחודי]),רשימת_שיעורים[ייחודי],0),2),0)","v":0},{"$f":"IFERROR(INDEX(רשימת_שיעורים[],MATCH(SUMPRODUCT((רשימת_שיעורים[יום]=לוח_זמנים_של_כיתה[[#Headers],[שישי]])*(ROUNDDOWN($B42,10)>=ROUNDDOWN(רשימת_שיעורים[שעת התחלה],10))*($B42<=רשימת_שיעורים[שעת סיום]),רשימת_שיעורים[ייחודי]),רשימת_שיעורים[ייחודי],0),2),0)","v":0},{"$f":"IFERROR(INDEX(רשימת_שיעורים[],MATCH(SUMPRODUCT((רשימת_שיעורים[יום]=לוח_זמנים_של_כיתה[[#Headers],[שבת]])*(ROUNDDOWN($B42,10)>=ROUNDDOWN(רשימת_שיעורים[שעת התחלה],10))*($B42<=רשימת_שיעורים[שעת סיום]),רשימת_שיעורים[ייחודי]),רשימת_שיעורים[ייחודי],0),2),0)","v":0}]
[null,"17:45:00",{"$f":"IFERROR(INDEX(רשימת_שיעורים[],MATCH(SUMPRODUCT((רשימת_שיעורים[יום]=לוח_זמנים_של_כיתה[[#Headers],[ראשון]])*(ROUNDDOWN($B43,10)>=ROUNDDOWN(רשימת_שיעורים[שעת התחלה],10))*($B43<=רשימת_שיעורים[שעת סיום]),רשימת_שיעורים[ייחודי]),רשימת_שיעורים[ייחודי],0),2),0)","v":0},{"$f":"IFERROR(INDEX(רשימת_שיעורים[],MATCH(SUMPRODUCT((רשימת_שיעורים[יום]=לוח_זמנים_של_כיתה[[#Headers],[שני]])*(ROUNDDOWN($B43,10)>=ROUNDDOWN(רשימת_שיעורים[שעת התחלה],10))*($B43<=רשימת_שיעורים[שעת סיום]),רשימת_שיעורים[ייחודי]),רשימת_שיעורים[ייחודי],0),2),0)","v":0},{"$f":"IFERROR(INDEX(רשימת_שיעורים[],MATCH(SUMPRODUCT((רשימת_שיעורים[יום]=לוח_זמנים_של_כיתה[[#Headers],[שלישי]])*(ROUNDDOWN($B43,10)>=ROUNDDOWN(רשימת_שיעורים[שעת התחלה],10))*($B43<=רשימת_שיעורים[שעת סיום]),רשימת_שיעורים[ייחודי]),רשימת_שיעורים[ייחודי],0),2),0)","v":0},{"$f":"IFERROR(INDEX(רשימת_שיעורים[],MATCH(SUMPRODUCT((רשימת_שיעורים[יום]=לוח_זמנים_של_כיתה[[#Headers],[רביעי]])*(ROUNDDOWN($B43,10)>=ROUNDDOWN(רשימת_שיעורים[שעת התחלה],10))*($B43<=רשימת_שיעורים[שעת סיום]),רשימת_שיעורים[ייחודי]),רשימת_שיעורים[ייחודי],0),2),0)","v":0},{"$f":"IFERROR(INDEX(רשימת_שיעורים[],MATCH(SUMPRODUCT((רשימת_שיעורים[יום]=לוח_זמנים_של_כיתה[[#Headers],[חמישי]])*(ROUNDDOWN($B43,10)>=ROUNDDOWN(רשימת_שיעורים[שעת התחלה],10))*($B43<=רשימת_שיעורים[שעת סיום]),רשימת_שיעורים[ייחודי]),רשימת_שיעורים[ייחודי],0),2),0)","v":0},{"$f":"IFERROR(INDEX(רשימת_שיעורים[],MATCH(SUMPRODUCT((רשימת_שיעורים[יום]=לוח_זמנים_של_כיתה[[#Headers],[שישי]])*(ROUNDDOWN($B43,10)>=ROUNDDOWN(רשימת_שיעורים[שעת התחלה],10))*($B43<=רשימת_שיעורים[שעת סיום]),רשימת_שיעורים[ייחודי]),רשימת_שיעורים[ייחודי],0),2),0)","v":0},{"$f":"IFERROR(INDEX(רשימת_שיעורים[],MATCH(SUMPRODUCT((רשימת_שיעורים[יום]=לוח_זמנים_של_כיתה[[#Headers],[שבת]])*(ROUNDDOWN($B43,10)>=ROUNDDOWN(רשימת_שיעורים[שעת התחלה],10))*($B43<=רשימת_שיעורים[שעת סיום]),רשימת_שיעורים[ייחודי]),רשימת_שיעורים[ייחודי],0),2),0)","v":0}]
[null,"18:00:00",{"$f":"IFERROR(INDEX(רשימת_שיעורים[],MATCH(SUMPRODUCT((רשימת_שיעורים[יום]=לוח_זמנים_של_כיתה[[#Headers],[ראשון]])*(ROUNDDOWN($B44,10)>=ROUNDDOWN(רשימת_שיעורים[שעת התחלה],10))*($B44<=רשימת_שיעורים[שעת סיום]),רשימת_שיעורים[ייחודי]),רשימת_שיעורים[ייחודי],0),2),0)","v":0},{"$f":"IFERROR(INDEX(רשימת_שיעורים[],MATCH(SUMPRODUCT((רשימת_שיעורים[יום]=לוח_זמנים_של_כיתה[[#Headers],[שני]])*(ROUNDDOWN($B44,10)>=ROUNDDOWN(רשימת_שיעורים[שעת התחלה],10))*($B44<=רשימת_שיעורים[שעת סיום]),רשימת_שיעורים[ייחודי]),רשימת_שיעורים[ייחודי],0),2),0)","v":0},{"$f":"IFERROR(INDEX(רשימת_שיעורים[],MATCH(SUMPRODUCT((רשימת_שיעורים[יום]=לוח_זמנים_של_כיתה[[#Headers],[שלישי]])*(ROUNDDOWN($B44,10)>=ROUNDDOWN(רשימת_שיעורים[שעת התחלה],10))*($B44<=רשימת_שיעורים[שעת סיום]),רשימת_שיעורים[ייחודי]),רשימת_שיעורים[ייחודי],0),2),0)","v":0},{"$f":"IFERROR(INDEX(רשימת_שיעורים[],MATCH(SUMPRODUCT((רשימת_שיעורים[יום]=לוח_זמנים_של_כיתה[[#Headers],[רביעי]])*(ROUNDDOWN($B44,10)>=ROUNDDOWN(רשימת_שיעורים[שעת התחלה],10))*($B44<=רשימת_שיעורים[שעת סיום]),רשימת_שיעורים[ייחודי]),רשימת_שיעורים[ייחודי],0),2),0)","v":0},{"$f":"IFERROR(INDEX(רשימת_שיעורים[],MATCH(SUMPRODUCT((רשימת_שיעורים[יום]=לוח_זמנים_של_כיתה[[#Headers],[חמישי]])*(ROUNDDOWN($B44,10)>=ROUNDDOWN(רשימת_שיעורים[שעת התחלה],10))*($B44<=רשימת_שיעורים[שעת סיום]),רשימת_שיעורים[ייחודי]),רשימת_שיעורים[ייחודי],0),2),0)","v":0},{"$f":"IFERROR(INDEX(רשימת_שיעורים[],MATCH(SUMPRODUCT((רשימת_שיעורים[יום]=לוח_זמנים_של_כיתה[[#Headers],[שישי]])*(ROUNDDOWN($B44,10)>=ROUNDDOWN(רשימת_שיעורים[שעת התחלה],10))*($B44<=רשימת_שיעורים[שעת סיום]),רשימת_שיעורים[ייחודי]),רשימת_שיעורים[ייחודי],0),2),0)","v":0},{"$f":"IFERROR(INDEX(רשימת_שיעורים[],MATCH(SUMPRODUCT((רשימת_שיעורים[יום]=לוח_זמנים_של_כיתה[[#Headers],[שבת]])*(ROUNDDOWN($B44,10)>=ROUNDDOWN(רשימת_שיעורים[שעת התחלה],10))*($B44<=רשימת_שיעורים[שעת סיום]),רשימת_שיעורים[ייחודי]),רשימת_שיעורים[ייחודי],0),2),0)","v":0}]
[null,"18:15:00",{"$f":"IFERROR(INDEX(רשימת_שיעורים[],MATCH(SUMPRODUCT((רשימת_שיעורים[יום]=לוח_זמנים_של_כיתה[[#Headers],[ראשון]])*(ROUNDDOWN($B45,10)>=ROUNDDOWN(רשימת_שיעורים[שעת התחלה],10))*($B45<=רשימת_שיעורים[שעת סיום]),רשימת_שיעורים[ייחודי]),רשימת_שיעורים[ייחודי],0),2),0)","v":0},{"$f":"IFERROR(INDEX(רשימת_שיעורים[],MATCH(SUMPRODUCT((רשימת_שיעורים[יום]=לוח_זמנים_של_כיתה[[#Headers],[שני]])*(ROUNDDOWN($B45,10)>=ROUNDDOWN(רשימת_שיעורים[שעת התחלה],10))*($B45<=רשימת_שיעורים[שעת סיום]),רשימת_שיעורים[ייחודי]),רשימת_שיעורים[ייחודי],0),2),0)","v":0},{"$f":"IFERROR(INDEX(רשימת_שיעורים[],MATCH(SUMPRODUCT((רשימת_שיעורים[יום]=לוח_זמנים_של_כיתה[[#Headers],[שלישי]])*(ROUNDDOWN($B45,10)>=ROUNDDOWN(רשימת_שיעורים[שעת התחלה],10))*($B45<=רשימת_שיעורים[שעת סיום]),רשימת_שיעורים[ייחודי]),רשימת_שיעורים[ייחודי],0),2),0)","v":0},{"$f":"IFERROR(INDEX(רשימת_שיעורים[],MATCH(SUMPRODUCT((רשימת_שיעורים[יום]=לוח_זמנים_של_כיתה[[#Headers],[רביעי]])*(ROUNDDOWN($B45,10)>=ROUNDDOWN(רשימת_שיעורים[שעת התחלה],10))*($B45<=רשימת_שיעורים[שעת סיום]),רשימת_שיעורים[ייחודי]),רשימת_שיעורים[ייחודי],0),2),0)","v":0},{"$f":"IFERROR(INDEX(רשימת_שיעורים[],MATCH(SUMPRODUCT((רשימת_שיעורים[יום]=לוח_זמנים_של_כיתה[[#Headers],[חמישי]])*(ROUNDDOWN($B45,10)>=ROUNDDOWN(רשימת_שיעורים[שעת התחלה],10))*($B45<=רשימת_שיעורים[שעת סיום]),רשימת_שיעורים[ייחודי]),רשימת_שיעורים[ייחודי],0),2),0)","v":0},{"$f":"IFERROR(INDEX(רשימת_שיעורים[],MATCH(SUMPRODUCT((רשימת_שיעורים[יום]=לוח_זמנים_של_כיתה[[#Headers],[שישי]])*(ROUNDDOWN($B45,10)>=ROUNDDOWN(רשימת_שיעורים[שעת התחלה],10))*($B45<=רשימת_שיעורים[שעת סיום]),רשימת_שיעורים[ייחודי]),רשימת_שיעורים[ייחודי],0),2),0)","v":0},{"$f":"IFERROR(INDEX(רשימת_שיעורים[],MATCH(SUMPRODUCT((רשימת_שיעורים[יום]=לוח_זמנים_של_כיתה[[#Headers],[שבת]])*(ROUNDDOWN($B45,10)>=ROUNDDOWN(רשימת_שיעורים[שעת התחלה],10))*($B45<=רשימת_שיעורים[שעת סיום]),רשימת_שיעורים[ייחודי]),רשימת_שיעורים[ייחודי],0),2),0)","v":0}]
[null,"18:30:00",{"$f":"IFERROR(INDEX(רשימת_שיעורים[],MATCH(SUMPRODUCT((רשימת_שיעורים[יום]=לוח_זמנים_של_כיתה[[#Headers],[ראשון]])*(ROUNDDOWN($B46,10)>=ROUNDDOWN(רשימת_שיעורים[שעת התחלה],10))*($B46<=רשימת_שיעורים[שעת סיום]),רשימת_שיעורים[ייחודי]),רשימת_שיעורים[ייחודי],0),2),0)","v":0},{"$f":"IFERROR(INDEX(רשימת_שיעורים[],MATCH(SUMPRODUCT((רשימת_שיעורים[יום]=לוח_זמנים_של_כיתה[[#Headers],[שני]])*(ROUNDDOWN($B46,10)>=ROUNDDOWN(רשימת_שיעורים[שעת התחלה],10))*($B46<=רשימת_שיעורים[שעת סיום]),רשימת_שיעורים[ייחודי]),רשימת_שיעורים[ייחודי],0),2),0)","v":0},{"$f":"IFERROR(INDEX(רשימת_שיעורים[],MATCH(SUMPRODUCT((רשימת_שיעורים[יום]=לוח_זמנים_של_כיתה[[#Headers],[שלישי]])*(ROUNDDOWN($B46,10)>=ROUNDDOWN(רשימת_שיעורים[שעת התחלה],10))*($B46<=רשימת_שיעורים[שעת סיום]),רשימת_שיעורים[ייחודי]),רשימת_שיעורים[ייחודי],0),2),0)","v":0},{"$f":"IFERROR(INDEX(רשימת_שיעורים[],MATCH(SUMPRODUCT((רשימת_שיעורים[יום]=לוח_זמנים_של_כיתה[[#Headers],[רביעי]])*(ROUNDDOWN($B46,10)>=ROUNDDOWN(רשימת_שיעורים[שעת התחלה],10))*($B46<=רשימת_שיעורים[שעת סיום]),רשימת_שיעורים[ייחודי]),רשימת_שיעורים[ייחודי],0),2),0)","v":0},{"$f":"IFERROR(INDEX(רשימת_שיעורים[],MATCH(SUMPRODUCT((רשימת_שיעורים[יום]=לוח_זמנים_של_כיתה[[#Headers],[חמישי]])*(ROUNDDOWN($B46,10)>=ROUNDDOWN(רשימת_שיעורים[שעת התחלה],10))*($B46<=רשימת_שיעורים[שעת סיום]),רשימת_שיעורים[ייחודי]),רשימת_שיעורים[ייחודי],0),2),0)","v":0},{"$f":"IFERROR(INDEX(רשימת_שיעורים[],MATCH(SUMPRODUCT((רשימת_שיעורים[יום]=לוח_זמנים_של_כיתה[[#Headers],[שישי]])*(ROUNDDOWN($B46,10)>=ROUNDDOWN(רשימת_שיעורים[שעת התחלה],10))*($B46<=רשימת_שיעורים[שעת סיום]),רשימת_שיעורים[ייחודי]),רשימת_שיעורים[ייחודי],0),2),0)","v":0},{"$f":"IFERROR(INDEX(רשימת_שיעורים[],MATCH(SUMPRODUCT((רשימת_שיעורים[יום]=לוח_זמנים_של_כיתה[[#Headers],[שבת]])*(ROUNDDOWN($B46,10)>=ROUNDDOWN(רשימת_שיעורים[שעת התחלה],10))*($B46<=רשימת_שיעורים[שעת סיום]),רשימת_שיעורים[ייחודי]),רשימת_שיעורים[ייחודי],0),2),0)","v":0}]
[null,"18:45:00",{"$f":"IFERROR(INDEX(רשימת_שיעורים[],MATCH(SUMPRODUCT((רשימת_שיעורים[יום]=לוח_זמנים_של_כיתה[[#Headers],[ראשון]])*(ROUNDDOWN($B47,10)>=ROUNDDOWN(רשימת_שיעורים[שעת התחלה],10))*($B47<=רשימת_שיעורים[שעת סיום]),רשימת_שיעורים[ייחודי]),רשימת_שיעורים[ייחודי],0),2),0)","v":0},{"$f":"IFERROR(INDEX(רשימת_שיעורים[],MATCH(SUMPRODUCT((רשימת_שיעורים[יום]=לוח_זמנים_של_כיתה[[#Headers],[שני]])*(ROUNDDOWN($B47,10)>=ROUNDDOWN(רשימת_שיעורים[שעת התחלה],10))*($B47<=רשימת_שיעורים[שעת סיום]),רשימת_שיעורים[ייחודי]),רשימת_שיעורים[ייחודי],0),2),0)","v":0},{"$f":"IFERROR(INDEX(רשימת_שיעורים[],MATCH(SUMPRODUCT((רשימת_שיעורים[יום]=לוח_זמנים_של_כיתה[[#Headers],[שלישי]])*(ROUNDDOWN($B47,10)>=ROUNDDOWN(רשימת_שיעורים[שעת התחלה],10))*($B47<=רשימת_שיעורים[שעת סיום]),רשימת_שיעורים[ייחודי]),רשימת_שיעורים[ייחודי],0),2),0)","v":0},{"$f":"IFERROR(INDEX(רשימת_שיעורים[],MATCH(SUMPRODUCT((רשימת_שיעורים[יום]=לוח_זמנים_של_כיתה[[#Headers],[רביעי]])*(ROUNDDOWN($B47,10)>=ROUNDDOWN(רשימת_שיעורים[שעת התחלה],10))*($B47<=רשימת_שיעורים[שעת סיום]),רשימת_שיעורים[ייחודי]),רשימת_שיעורים[ייחודי],0),2),0)","v":0},{"$f":"IFERROR(INDEX(רשימת_שיעורים[],MATCH(SUMPRODUCT((רשימת_שיעורים[יום]=לוח_זמנים_של_כיתה[[#Headers],[חמישי]])*(ROUNDDOWN($B47,10)>=ROUNDDOWN(רשימת_שיעורים[שעת התחלה],10))*($B47<=רשימת_שיעורים[שעת סיום]),רשימת_שיעורים[ייחודי]),רשימת_שיעורים[ייחודי],0),2),0)","v":0},{"$f":"IFERROR(INDEX(רשימת_שיעורים[],MATCH(SUMPRODUCT((רשימת_שיעורים[יום]=לוח_זמנים_של_כיתה[[#Headers],[שישי]])*(ROUNDDOWN($B47,10)>=ROUNDDOWN(רשימת_שיעורים[שעת התחלה],10))*($B47<=רשימת_שיעורים[שעת סיום]),רשימת_שיעורים[ייחודי]),רשימת_שיעורים[ייחודי],0),2),0)","v":0},{"$f":"IFERROR(INDEX(רשימת_שיעורים[],MATCH(SUMPRODUCT((רשימת_שיעורים[יום]=לוח_זמנים_של_כיתה[[#Headers],[שבת]])*(ROUNDDOWN($B47,10)>=ROUNDDOWN(רשימת_שיעורים[שעת התחלה],10))*($B47<=רשימת_שיעורים[שעת סיום]),רשימת_שיעורים[ייחודי]),רשימת_שיעורים[ייחודי],0),2),0)","v":0}]
[null,"19:00:00",{"$f":"IFERROR(INDEX(רשימת_שיעורים[],MATCH(SUMPRODUCT((רשימת_שיעורים[יום]=לוח_זמנים_של_כיתה[[#Headers],[ראשון]])*(ROUNDDOWN($B48,10)>=ROUNDDOWN(רשימת_שיעורים[שעת התחלה],10))*($B48<=רשימת_שיעורים[שעת סיום]),רשימת_שיעורים[ייחודי]),רשימת_שיעורים[ייחודי],0),2),0)","v":0},{"$f":"IFERROR(INDEX(רשימת_שיעורים[],MATCH(SUMPRODUCT((רשימת_שיעורים[יום]=לוח_זמנים_של_כיתה[[#Headers],[שני]])*(ROUNDDOWN($B48,10)>=ROUNDDOWN(רשימת_שיעורים[שעת התחלה],10))*($B48<=רשימת_שיעורים[שעת סיום]),רשימת_שיעורים[ייחודי]),רשימת_שיעורים[ייחודי],0),2),0)","v":0},{"$f":"IFERROR(INDEX(רשימת_שיעורים[],MATCH(SUMPRODUCT((רשימת_שיעורים[יום]=לוח_זמנים_של_כיתה[[#Headers],[שלישי]])*(ROUNDDOWN($B48,10)>=ROUNDDOWN(רשימת_שיעורים[שעת התחלה],10))*($B48<=רשימת_שיעורים[שעת סיום]),רשימת_שיעורים[ייחודי]),רשימת_שיעורים[ייחודי],0),2),0)","v":0},{"$f":"IFERROR(INDEX(רשימת_שיעורים[],MATCH(SUMPRODUCT((רשימת_שיעורים[יום]=לוח_זמנים_של_כיתה[[#Headers],[רביעי]])*(ROUNDDOWN($B48,10)>=ROUNDDOWN(רשימת_שיעורים[שעת התחלה],10))*($B48<=רשימת_שיעורים[שעת סיום]),רשימת_שיעורים[ייחודי]),רשימת_שיעורים[ייחודי],0),2),0)","v":0},{"$f":"IFERROR(INDEX(רשימת_שיעורים[],MATCH(SUMPRODUCT((רשימת_שיעורים[יום]=לוח_זמנים_של_כיתה[[#Headers],[חמישי]])*(ROUNDDOWN($B48,10)>=ROUNDDOWN(רשימת_שיעורים[שעת התחלה],10))*($B48<=רשימת_שיעורים[שעת סיום]),רשימת_שיעורים[ייחודי]),רשימת_שיעורים[ייחודי],0),2),0)","v":0},{"$f":"IFERROR(INDEX(רשימת_שיעורים[],MATCH(SUMPRODUCT((רשימת_שיעורים[יום]=לוח_זמנים_של_כיתה[[#Headers],[שישי]])*(ROUNDDOWN($B48,10)>=ROUNDDOWN(רשימת_שיעורים[שעת התחלה],10))*($B48<=רשימת_שיעורים[שעת סיום]),רשימת_שיעורים[ייחודי]),רשימת_שיעורים[ייחודי],0),2),0)","v":0},{"$f":"IFERROR(INDEX(רשימת_שיעורים[],MATCH(SUMPRODUCT((רשימת_שיעורים[יום]=לוח_זמנים_של_כיתה[[#Headers],[שבת]])*(ROUNDDOWN($B48,10)>=ROUNDDOWN(רשימת_שיעורים[שעת התחלה],10))*($B48<=רשימת_שיעורים[שעת סיום]),רשימת_שיעורים[ייחודי]),רשימת_שיעורים[ייחודי],0),2),0)","v":0}]
[null,"19:15:00",{"$f":"IFERROR(INDEX(רשימת_שיעורים[],MATCH(SUMPRODUCT((רשימת_שיעורים[יום]=לוח_זמנים_של_כיתה[[#Headers],[ראשון]])*(ROUNDDOWN($B49,10)>=ROUNDDOWN(רשימת_שיעורים[שעת התחלה],10))*($B49<=רשימת_שיעורים[שעת סיום]),רשימת_שיעורים[ייחודי]),רשימת_שיעורים[ייחודי],0),2),0)","v":0},{"$f":"IFERROR(INDEX(רשימת_שיעורים[],MATCH(SUMPRODUCT((רשימת_שיעורים[יום]=לוח_זמנים_של_כיתה[[#Headers],[שני]])*(ROUNDDOWN($B49,10)>=ROUNDDOWN(רשימת_שיעורים[שעת התחלה],10))*($B49<=רשימת_שיעורים[שעת סיום]),רשימת_שיעורים[ייחודי]),רשימת_שיעורים[ייחודי],0),2),0)","v":0},{"$f":"IFERROR(INDEX(רשימת_שיעורים[],MATCH(SUMPRODUCT((רשימת_שיעורים[יום]=לוח_זמנים_של_כיתה[[#Headers],[שלישי]])*(ROUNDDOWN($B49,10)>=ROUNDDOWN(רשימת_שיעורים[שעת התחלה],10))*($B49<=רשימת_שיעורים[שעת סיום]),רשימת_שיעורים[ייחודי]),רשימת_שיעורים[ייחודי],0),2),0)","v":0},{"$f":"IFERROR(INDEX(רשימת_שיעורים[],MATCH(SUMPRODUCT((רשימת_שיעורים[יום]=לוח_זמנים_של_כיתה[[#Headers],[רביעי]])*(ROUNDDOWN($B49,10)>=ROUNDDOWN(רשימת_שיעורים[שעת התחלה],10))*($B49<=רשימת_שיעורים[שעת סיום]),רשימת_שיעורים[ייחודי]),רשימת_שיעורים[ייחודי],0),2),0)","v":0},{"$f":"IFERROR(INDEX(רשימת_שיעורים[],MATCH(SUMPRODUCT((רשימת_שיעורים[יום]=לוח_זמנים_של_כיתה[[#Headers],[חמישי]])*(ROUNDDOWN($B49,10)>=ROUNDDOWN(רשימת_שיעורים[שעת התחלה],10))*($B49<=רשימת_שיעורים[שעת סיום]),רשימת_שיעורים[ייחודי]),רשימת_שיעורים[ייחודי],0),2),0)","v":0},{"$f":"IFERROR(INDEX(רשימת_שיעורים[],MATCH(SUMPRODUCT((רשימת_שיעורים[יום]=לוח_זמנים_של_כיתה[[#Headers],[שישי]])*(ROUNDDOWN($B49,10)>=ROUNDDOWN(רשימת_שיעורים[שעת התחלה],10))*($B49<=רשימת_שיעורים[שעת סיום]),רשימת_שיעורים[ייחודי]),רשימת_שיעורים[ייחודי],0),2),0)","v":0},{"$f":"IFERROR(INDEX(רשימת_שיעורים[],MATCH(SUMPRODUCT((רשימת_שיעורים[יום]=לוח_זמנים_של_כיתה[[#Headers],[שבת]])*(ROUNDDOWN($B49,10)>=ROUNDDOWN(רשימת_שיעורים[שעת התחלה],10))*($B49<=רשימת_שיעורים[שעת סיום]),רשימת_שיעורים[ייחודי]),רשימת_שיעורים[ייחודי],0),2),0)","v":0}]
[null,"19:30:00",{"$f":"IFERROR(INDEX(רשימת_שיעורים[],MATCH(SUMPRODUCT((רשימת_שיעורים[יום]=לוח_זמנים_של_כיתה[[#Headers],[ראשון]])*(ROUNDDOWN($B50,10)>=ROUNDDOWN(רשימת_שיעורים[שעת התחלה],10))*($B50<=רשימת_שיעורים[שעת סיום]),רשימת_שיעורים[ייחודי]),רשימת_שיעורים[ייחודי],0),2),0)","v":0},{"$f":"IFERROR(INDEX(רשימת_שיעורים[],MATCH(SUMPRODUCT((רשימת_שיעורים[יום]=לוח_זמנים_של_כיתה[[#Headers],[שני]])*(ROUNDDOWN($B50,10)>=ROUNDDOWN(רשימת_שיעורים[שעת התחלה],10))*($B50<=רשימת_שיעורים[שעת סיום]),רשימת_שיעורים[ייחודי]),רשימת_שיעורים[ייחודי],0),2),0)","v":0},{"$f":"IFERROR(INDEX(רשימת_שיעורים[],MATCH(SUMPRODUCT((רשימת_שיעורים[יום]=לוח_זמנים_של_כיתה[[#Headers],[שלישי]])*(ROUNDDOWN($B50,10)>=ROUNDDOWN(רשימת_שיעורים[שעת התחלה],10))*($B50<=רשימת_שיעורים[שעת סיום]),רשימת_שיעורים[ייחודי]),רשימת_שיעורים[ייחודי],0),2),0)","v":0},{"$f":"IFERROR(INDEX(רשימת_שיעורים[],MATCH(SUMPRODUCT((רשימת_שיעורים[יום]=לוח_זמנים_של_כיתה[[#Headers],[רביעי]])*(ROUNDDOWN($B50,10)>=ROUNDDOWN(רשימת_שיעורים[שעת התחלה],10))*($B50<=רשימת_שיעורים[שעת סיום]),רשימת_שיעורים[ייחודי]),רשימת_שיעורים[ייחודי],0),2),0)","v":0},{"$f":"IFERROR(INDEX(רשימת_שיעורים[],MATCH(SUMPRODUCT((רשימת_שיעורים[יום]=לוח_זמנים_של_כיתה[[#Headers],[חמישי]])*(ROUNDDOWN($B50,10)>=ROUNDDOWN(רשימת_שיעורים[שעת התחלה],10))*($B50<=רשימת_שיעורים[שעת סיום]),רשימת_שיעורים[ייחודי]),רשימת_שיעורים[ייחודי],0),2),0)","v":0},{"$f":"IFERROR(INDEX(רשימת_שיעורים[],MATCH(SUMPRODUCT((רשימת_שיעורים[יום]=לוח_זמנים_של_כיתה[[#Headers],[שישי]])*(ROUNDDOWN($B50,10)>=ROUNDDOWN(רשימת_שיעורים[שעת התחלה],10))*($B50<=רשימת_שיעורים[שעת סיום]),רשימת_שיעורים[ייחודי]),רשימת_שיעורים[ייחודי],0),2),0)","v":0},{"$f":"IFERROR(INDEX(רשימת_שיעורים[],MATCH(SUMPRODUCT((רשימת_שיעורים[יום]=לוח_זמנים_של_כיתה[[#Headers],[שבת]])*(ROUNDDOWN($B50,10)>=ROUNDDOWN(רשימת_שיעורים[שעת התחלה],10))*($B50<=רשימת_שיעורים[שעת סיום]),רשימת_שיעורים[ייחודי]),רשימת_שיעורים[ייחודי],0),2),0)","v":0}]
[null,"19:45:00",{"$f":"IFERROR(INDEX(רשימת_שיעורים[],MATCH(SUMPRODUCT((רשימת_שיעורים[יום]=לוח_זמנים_של_כיתה[[#Headers],[ראשון]])*(ROUNDDOWN($B51,10)>=ROUNDDOWN(רשימת_שיעורים[שעת התחלה],10))*($B51<=רשימת_שיעורים[שעת סיום]),רשימת_שיעורים[ייחודי]),רשימת_שיעורים[ייחודי],0),2),0)","v":0},{"$f":"IFERROR(INDEX(רשימת_שיעורים[],MATCH(SUMPRODUCT((רשימת_שיעורים[יום]=לוח_זמנים_של_כיתה[[#Headers],[שני]])*(ROUNDDOWN($B51,10)>=ROUNDDOWN(רשימת_שיעורים[שעת התחלה],10))*($B51<=רשימת_שיעורים[שעת סיום]),רשימת_שיעורים[ייחודי]),רשימת_שיעורים[ייחודי],0),2),0)","v":0},{"$f":"IFERROR(INDEX(רשימת_שיעורים[],MATCH(SUMPRODUCT((רשימת_שיעורים[יום]=לוח_זמנים_של_כיתה[[#Headers],[שלישי]])*(ROUNDDOWN($B51,10)>=ROUNDDOWN(רשימת_שיעורים[שעת התחלה],10))*($B51<=רשימת_שיעורים[שעת סיום]),רשימת_שיעורים[ייחודי]),רשימת_שיעורים[ייחודי],0),2),0)","v":0},{"$f":"IFERROR(INDEX(רשימת_שיעורים[],MATCH(SUMPRODUCT((רשימת_שיעורים[יום]=לוח_זמנים_של_כיתה[[#Headers],[רביעי]])*(ROUNDDOWN($B51,10)>=ROUNDDOWN(רשימת_שיעורים[שעת התחלה],10))*($B51<=רשימת_שיעורים[שעת סיום]),רשימת_שיעורים[ייחודי]),רשימת_שיעורים[ייחודי],0),2),0)","v":0},{"$f":"IFERROR(INDEX(רשימת_שיעורים[],MATCH(SUMPRODUCT((רשימת_שיעורים[יום]=לוח_זמנים_של_כיתה[[#Headers],[חמישי]])*(ROUNDDOWN($B51,10)>=ROUNDDOWN(רשימת_שיעורים[שעת התחלה],10))*($B51<=רשימת_שיעורים[שעת סיום]),רשימת_שיעורים[ייחודי]),רשימת_שיעורים[ייחודי],0),2),0)","v":0},{"$f":"IFERROR(INDEX(רשימת_שיעורים[],MATCH(SUMPRODUCT((רשימת_שיעורים[יום]=לוח_זמנים_של_כיתה[[#Headers],[שישי]])*(ROUNDDOWN($B51,10)>=ROUNDDOWN(רשימת_שיעורים[שעת התחלה],10))*($B51<=רשימת_שיעורים[שעת סיום]),רשימת_שיעורים[ייחודי]),רשימת_שיעורים[ייחודי],0),2),0)","v":0},{"$f":"IFERROR(INDEX(רשימת_שיעורים[],MATCH(SUMPRODUCT((רשימת_שיעורים[יום]=לוח_זמנים_של_כיתה[[#Headers],[שבת]])*(ROUNDDOWN($B51,10)>=ROUNDDOWN(רשימת_שיעורים[שעת התחלה],10))*($B51<=רשימת_שיעורים[שעת סיום]),רשימת_שיעורים[ייחודי]),רשימת_שיעורים[ייחודי],0),2),0)","v":0}]
[null,"20:00:00",{"$f":"IFERROR(INDEX(רשימת_שיעורים[],MATCH(SUMPRODUCT((רשימת_שיעורים[יום]=לוח_זמנים_של_כיתה[[#Headers],[ראשון]])*(ROUNDDOWN($B52,10)>=ROUNDDOWN(רשימת_שיעורים[שעת התחלה],10))*($B52<=רשימת_שיעורים[שעת סיום]),רשימת_שיעורים[ייחודי]),רשימת_שיעורים[ייחודי],0),2),0)","v":0},{"$f":"IFERROR(INDEX(רשימת_שיעורים[],MATCH(SUMPRODUCT((רשימת_שיעורים[יום]=לוח_זמנים_של_כיתה[[#Headers],[שני]])*(ROUNDDOWN($B52,10)>=ROUNDDOWN(רשימת_שיעורים[שעת התחלה],10))*($B52<=רשימת_שיעורים[שעת סיום]),רשימת_שיעורים[ייחודי]),רשימת_שיעורים[ייחודי],0),2),0)","v":0},{"$f":"IFERROR(INDEX(רשימת_שיעורים[],MATCH(SUMPRODUCT((רשימת_שיעורים[יום]=לוח_זמנים_של_כיתה[[#Headers],[שלישי]])*(ROUNDDOWN($B52,10)>=ROUNDDOWN(רשימת_שיעורים[שעת התחלה],10))*($B52<=רשימת_שיעורים[שעת סיום]),רשימת_שיעורים[ייחודי]),רשימת_שיעורים[ייחודי],0),2),0)","v":0},{"$f":"IFERROR(INDEX(רשימת_שיעורים[],MATCH(SUMPRODUCT((רשימת_שיעורים[יום]=לוח_זמנים_של_כיתה[[#Headers],[רביעי]])*(ROUNDDOWN($B52,10)>=ROUNDDOWN(רשימת_שיעורים[שעת התחלה],10))*($B52<=רשימת_שיעורים[שעת סיום]),רשימת_שיעורים[ייחודי]),רשימת_שיעורים[ייחודי],0),2),0)","v":0},{"$f":"IFERROR(INDEX(רשימת_שיעורים[],MATCH(SUMPRODUCT((רשימת_שיעורים[יום]=לוח_זמנים_של_כיתה[[#Headers],[חמישי]])*(ROUNDDOWN($B52,10)>=ROUNDDOWN(רשימת_שיעורים[שעת התחלה],10))*($B52<=רשימת_שיעורים[שעת סיום]),רשימת_שיעורים[ייחודי]),רשימת_שיעורים[ייחודי],0),2),0)","v":0},{"$f":"IFERROR(INDEX(רשימת_שיעורים[],MATCH(SUMPRODUCT((רשימת_שיעורים[יום]=לוח_זמנים_של_כיתה[[#Headers],[שישי]])*(ROUNDDOWN($B52,10)>=ROUNDDOWN(רשימת_שיעורים[שעת התחלה],10))*($B52<=רשימת_שיעורים[שעת סיום]),רשימת_שיעורים[ייחודי]),רשימת_שיעורים[ייחודי],0),2),0)","v":0},{"$f":"IFERROR(INDEX(רשימת_שיעורים[],MATCH(SUMPRODUCT((רשימת_שיעורים[יום]=לוח_זמנים_של_כיתה[[#Headers],[שבת]])*(ROUNDDOWN($B52,10)>=ROUNDDOWN(רשימת_שיעורים[שעת התחלה],10))*($B52<=רשימת_שיעורים[שעת סיום]),רשימת_שיעורים[ייחודי]),רשימת_שיעורים[ייחודי],0),2),0)","v":0}]
[null,"20:15:00",{"$f":"IFERROR(INDEX(רשימת_שיעורים[],MATCH(SUMPRODUCT((רשימת_שיעורים[יום]=לוח_זמנים_של_כיתה[[#Headers],[ראשון]])*(ROUNDDOWN($B53,10)>=ROUNDDOWN(רשימת_שיעורים[שעת התחלה],10))*($B53<=רשימת_שיעורים[שעת סיום]),רשימת_שיעורים[ייחודי]),רשימת_שיעורים[ייחודי],0),2),0)","v":0},{"$f":"IFERROR(INDEX(רשימת_שיעורים[],MATCH(SUMPRODUCT((רשימת_שיעורים[יום]=לוח_זמנים_של_כיתה[[#Headers],[שני]])*(ROUNDDOWN($B53,10)>=ROUNDDOWN(רשימת_שיעורים[שעת התחלה],10))*($B53<=רשימת_שיעורים[שעת סיום]),רשימת_שיעורים[ייחודי]),רשימת_שיעורים[ייחודי],0),2),0)","v":0},{"$f":"IFERROR(INDEX(רשימת_שיעורים[],MATCH(SUMPRODUCT((רשימת_שיעורים[יום]=לוח_זמנים_של_כיתה[[#Headers],[שלישי]])*(ROUNDDOWN($B53,10)>=ROUNDDOWN(רשימת_שיעורים[שעת התחלה],10))*($B53<=רשימת_שיעורים[שעת סיום]),רשימת_שיעורים[ייחודי]),רשימת_שיעורים[ייחודי],0),2),0)","v":0},{"$f":"IFERROR(INDEX(רשימת_שיעורים[],MATCH(SUMPRODUCT((רשימת_שיעורים[יום]=לוח_זמנים_של_כיתה[[#Headers],[רביעי]])*(ROUNDDOWN($B53,10)>=ROUNDDOWN(רשימת_שיעורים[שעת התחלה],10))*($B53<=רשימת_שיעורים[שעת סיום]),רשימת_שיעורים[ייחודי]),רשימת_שיעורים[ייחודי],0),2),0)","v":0},{"$f":"IFERROR(INDEX(רשימת_שיעורים[],MATCH(SUMPRODUCT((רשימת_שיעורים[יום]=לוח_זמנים_של_כיתה[[#Headers],[חמישי]])*(ROUNDDOWN($B53,10)>=ROUNDDOWN(רשימת_שיעורים[שעת התחלה],10))*($B53<=רשימת_שיעורים[שעת סיום]),רשימת_שיעורים[ייחודי]),רשימת_שיעורים[ייחודי],0),2),0)","v":0},{"$f":"IFERROR(INDEX(רשימת_שיעורים[],MATCH(SUMPRODUCT((רשימת_שיעורים[יום]=לוח_זמנים_של_כיתה[[#Headers],[שישי]])*(ROUNDDOWN($B53,10)>=ROUNDDOWN(רשימת_שיעורים[שעת התחלה],10))*($B53<=רשימת_שיעורים[שעת סיום]),רשימת_שיעורים[ייחודי]),רשימת_שיעורים[ייחודי],0),2),0)","v":0},{"$f":"IFERROR(INDEX(רשימת_שיעורים[],MATCH(SUMPRODUCT((רשימת_שיעורים[יום]=לוח_זמנים_של_כיתה[[#Headers],[שבת]])*(ROUNDDOWN($B53,10)>=ROUNDDOWN(רשימת_שיעורים[שעת התחלה],10))*($B53<=רשימת_שיעורים[שעת סיום]),רשימת_שיעורים[ייחודי]),רשימת_שיעורים[ייחודי],0),2),0)","v":0}]
[null,"20:30:00",{"$f":"IFERROR(INDEX(רשימת_שיעורים[],MATCH(SUMPRODUCT((רשימת_שיעורים[יום]=לוח_זמנים_של_כיתה[[#Headers],[ראשון]])*(ROUNDDOWN($B54,10)>=ROUNDDOWN(רשימת_שיעורים[שעת התחלה],10))*($B54<=רשימת_שיעורים[שעת סיום]),רשימת_שיעורים[ייחודי]),רשימת_שיעורים[ייחודי],0),2),0)","v":0},{"$f":"IFERROR(INDEX(רשימת_שיעורים[],MATCH(SUMPRODUCT((רשימת_שיעורים[יום]=לוח_זמנים_של_כיתה[[#Headers],[שני]])*(ROUNDDOWN($B54,10)>=ROUNDDOWN(רשימת_שיעורים[שעת התחלה],10))*($B54<=רשימת_שיעורים[שעת סיום]),רשימת_שיעורים[ייחודי]),רשימת_שיעורים[ייחודי],0),2),0)","v":0},{"$f":"IFERROR(INDEX(רשימת_שיעורים[],MATCH(SUMPRODUCT((רשימת_שיעורים[יום]=לוח_זמנים_של_כיתה[[#Headers],[שלישי]])*(ROUNDDOWN($B54,10)>=ROUNDDOWN(רשימת_שיעורים[שעת התחלה],10))*($B54<=רשימת_שיעורים[שעת סיום]),רשימת_שיעורים[ייחודי]),רשימת_שיעורים[ייחודי],0),2),0)","v":0},{"$f":"IFERROR(INDEX(רשימת_שיעורים[],MATCH(SUMPRODUCT((רשימת_שיעורים[יום]=לוח_זמנים_של_כיתה[[#Headers],[רביעי]])*(ROUNDDOWN($B54,10)>=ROUNDDOWN(רשימת_שיעורים[שעת התחלה],10))*($B54<=רשימת_שיעורים[שעת סיום]),רשימת_שיעורים[ייחודי]),רשימת_שיעורים[ייחודי],0),2),0)","v":0},{"$f":"IFERROR(INDEX(רשימת_שיעורים[],MATCH(SUMPRODUCT((רשימת_שיעורים[יום]=לוח_זמנים_של_כיתה[[#Headers],[חמישי]])*(ROUNDDOWN($B54,10)>=ROUNDDOWN(רשימת_שיעורים[שעת התחלה],10))*($B54<=רשימת_שיעורים[שעת סיום]),רשימת_שיעורים[ייחודי]),רשימת_שיעורים[ייחודי],0),2),0)","v":0},{"$f":"IFERROR(INDEX(רשימת_שיעורים[],MATCH(SUMPRODUCT((רשימת_שיעורים[יום]=לוח_זמנים_של_כיתה[[#Headers],[שישי]])*(ROUNDDOWN($B54,10)>=ROUNDDOWN(רשימת_שיעורים[שעת התחלה],10))*($B54<=רשימת_שיעורים[שעת סיום]),רשימת_שיעורים[ייחודי]),רשימת_שיעורים[ייחודי],0),2),0)","v":0},{"$f":"IFERROR(INDEX(רשימת_שיעורים[],MATCH(SUMPRODUCT((רשימת_שיעורים[יום]=לוח_זמנים_של_כיתה[[#Headers],[שבת]])*(ROUNDDOWN($B54,10)>=ROUNDDOWN(רשימת_שיעורים[שעת התחלה],10))*($B54<=רשימת_שיעורים[שעת סיום]),רשימת_שיעורים[ייחודי]),רשימת_שיעורים[ייחודי],0),2),0)","v":0}]
[null,"20:45:00",{"$f":"IFERROR(INDEX(רשימת_שיעורים[],MATCH(SUMPRODUCT((רשימת_שיעורים[יום]=לוח_זמנים_של_כיתה[[#Headers],[ראשון]])*(ROUNDDOWN($B55,10)>=ROUNDDOWN(רשימת_שיעורים[שעת התחלה],10))*($B55<=רשימת_שיעורים[שעת סיום]),רשימת_שיעורים[ייחודי]),רשימת_שיעורים[ייחודי],0),2),0)","v":0},{"$f":"IFERROR(INDEX(רשימת_שיעורים[],MATCH(SUMPRODUCT((רשימת_שיעורים[יום]=לוח_זמנים_של_כיתה[[#Headers],[שני]])*(ROUNDDOWN($B55,10)>=ROUNDDOWN(רשימת_שיעורים[שעת התחלה],10))*($B55<=רשימת_שיעורים[שעת סיום]),רשימת_שיעורים[ייחודי]),רשימת_שיעורים[ייחודי],0),2),0)","v":0},{"$f":"IFERROR(INDEX(רשימת_שיעורים[],MATCH(SUMPRODUCT((רשימת_שיעורים[יום]=לוח_זמנים_של_כיתה[[#Headers],[שלישי]])*(ROUNDDOWN($B55,10)>=ROUNDDOWN(רשימת_שיעורים[שעת התחלה],10))*($B55<=רשימת_שיעורים[שעת סיום]),רשימת_שיעורים[ייחודי]),רשימת_שיעורים[ייחודי],0),2),0)","v":0},{"$f":"IFERROR(INDEX(רשימת_שיעורים[],MATCH(SUMPRODUCT((רשימת_שיעורים[יום]=לוח_זמנים_של_כיתה[[#Headers],[רביעי]])*(ROUNDDOWN($B55,10)>=ROUNDDOWN(רשימת_שיעורים[שעת התחלה],10))*($B55<=רשימת_שיעורים[שעת סיום]),רשימת_שיעורים[ייחודי]),רשימת_שיעורים[ייחודי],0),2),0)","v":0},{"$f":"IFERROR(INDEX(רשימת_שיעורים[],MATCH(SUMPRODUCT((רשימת_שיעורים[יום]=לוח_זמנים_של_כיתה[[#Headers],[חמישי]])*(ROUNDDOWN($B55,10)>=ROUNDDOWN(רשימת_שיעורים[שעת התחלה],10))*($B55<=רשימת_שיעורים[שעת סיום]),רשימת_שיעורים[ייחודי]),רשימת_שיעורים[ייחודי],0),2),0)","v":0},{"$f":"IFERROR(INDEX(רשימת_שיעורים[],MATCH(SUMPRODUCT((רשימת_שיעורים[יום]=לוח_זמנים_של_כיתה[[#Headers],[שישי]])*(ROUNDDOWN($B55,10)>=ROUNDDOWN(רשימת_שיעורים[שעת התחלה],10))*($B55<=רשימת_שיעורים[שעת סיום]),רשימת_שיעורים[ייחודי]),רשימת_שיעורים[ייחודי],0),2),0)","v":0},{"$f":"IFERROR(INDEX(רשימת_שיעורים[],MATCH(SUMPRODUCT((רשימת_שיעורים[יום]=לוח_זמנים_של_כיתה[[#Headers],[שבת]])*(ROUNDDOWN($B55,10)>=ROUNDDOWN(רשימת_שיעורים[שעת התחלה],10))*($B55<=רשימת_שיעורים[שעת סיום]),רשימת_שיעורים[ייחודי]),רשימת_שיעורים[ייחודי],0),2),0)","v":0}]
[null,"21:00:00",{"$f":"IFERROR(INDEX(רשימת_שיעורים[],MATCH(SUMPRODUCT((רשימת_שיעורים[יום]=לוח_זמנים_של_כיתה[[#Headers],[ראשון]])*(ROUNDDOWN($B56,10)>=ROUNDDOWN(רשימת_שיעורים[שעת התחלה],10))*($B56<=רשימת_שיעורים[שעת סיום]),רשימת_שיעורים[ייחודי]),רשימת_שיעורים[ייחודי],0),2),0)","v":0},{"$f":"IFERROR(INDEX(רשימת_שיעורים[],MATCH(SUMPRODUCT((רשימת_שיעורים[יום]=לוח_זמנים_של_כיתה[[#Headers],[שני]])*(ROUNDDOWN($B56,10)>=ROUNDDOWN(רשימת_שיעורים[שעת התחלה],10))*($B56<=רשימת_שיעורים[שעת סיום]),רשימת_שיעורים[ייחודי]),רשימת_שיעורים[ייחודי],0),2),0)","v":0},{"$f":"IFERROR(INDEX(רשימת_שיעורים[],MATCH(SUMPRODUCT((רשימת_שיעורים[יום]=לוח_זמנים_של_כיתה[[#Headers],[שלישי]])*(ROUNDDOWN($B56,10)>=ROUNDDOWN(רשימת_שיעורים[שעת התחלה],10))*($B56<=רשימת_שיעורים[שעת סיום]),רשימת_שיעורים[ייחודי]),רשימת_שיעורים[ייחודי],0),2),0)","v":0},{"$f":"IFERROR(INDEX(רשימת_שיעורים[],MATCH(SUMPRODUCT((רשימת_שיעורים[יום]=לוח_זמנים_של_כיתה[[#Headers],[רביעי]])*(ROUNDDOWN($B56,10)>=ROUNDDOWN(רשימת_שיעורים[שעת התחלה],10))*($B56<=רשימת_שיעורים[שעת סיום]),רשימת_שיעורים[ייחודי]),רשימת_שיעורים[ייחודי],0),2),0)","v":0},{"$f":"IFERROR(INDEX(רשימת_שיעורים[],MATCH(SUMPRODUCT((רשימת_שיעורים[יום]=לוח_זמנים_של_כיתה[[#Headers],[חמישי]])*(ROUNDDOWN($B56,10)>=ROUNDDOWN(רשימת_שיעורים[שעת התחלה],10))*($B56<=רשימת_שיעורים[שעת סיום]),רשימת_שיעורים[ייחודי]),רשימת_שיעורים[ייחודי],0),2),0)","v":0},{"$f":"IFERROR(INDEX(רשימת_שיעורים[],MATCH(SUMPRODUCT((רשימת_שיעורים[יום]=לוח_זמנים_של_כיתה[[#Headers],[שישי]])*(ROUNDDOWN($B56,10)>=ROUNDDOWN(רשימת_שיעורים[שעת התחלה],10))*($B56<=רשימת_שיעורים[שעת סיום]),רשימת_שיעורים[ייחודי]),רשימת_שיעורים[ייחודי],0),2),0)","v":0},{"$f":"IFERROR(INDEX(רשימת_שיעורים[],MATCH(SUMPRODUCT((רשימת_שיעורים[יום]=לוח_זמנים_של_כיתה[[#Headers],[שבת]])*(ROUNDDOWN($B56,10)>=ROUNDDOWN(רשימת_שיעורים[שעת התחלה],10))*($B56<=רשימת_שיעורים[שעת סיום]),רשימת_שיעורים[ייחודי]),רשימת_שיעורים[ייחודי],0),2),0)","v":0}]

{"sheet":"רשימת שיעורים","index":1,"n_rows":10,"n_cols":8,"rows_kept":10,"merged":[[0,1,0,5],[0,6,0,7]]}
[null,"רשימת שיעורים",{"$nulls":4},"לוח זמנים של כיתה"]
[null,"שיעור","מזהה","יום","מיקום","שעת התחלה","שעת סיום","ייחודי"]
[null,"כתיבה טכנית","WR-121","שני","בניין א'","13:00:00","14:00:00",{"$f":"ROW()-ROW(רשימת_שיעורים[[#Headers],[ייחודי]])","v":1}]
[null,"כתיבה טכנית","WR-121","רביעי","בניין א'","13:00:00","14:00:00",{"$f":"ROW()-ROW(רשימת_שיעורים[[#Headers],[ייחודי]])","v":2}]
[null,"נאום ציבורי","SP-111","שני","בניין ב'","16:00:00","17:00:00",{"$f":"ROW()-ROW(רשימת_שיעורים[[#Headers],[ייחודי]])","v":3}]
[null,"בריאות וכושר","HPE-295","שלישי","בניין ב'","11:00:00","12:00:00",{"$f":"ROW()-ROW(רשימת_שיעורים[[#Headers],[ייחודי]])","v":4}]
[null,"בריאות וכושר","HPE-295","חמישי","בניין ב'","11:00:00","12:00:00",{"$f":"ROW()-ROW(רשימת_שיעורים[[#Headers],[ייחודי]])","v":5}]
[null,"אלגברה","MTH-113","שני","בניין ג'","08:10:00","09:15:00",{"$f":"ROW()-ROW(רשימת_שיעורים[[#Headers],[ייחודי]])","v":6}]
[null,"אלגברה","MTH-113","רביעי","בניין ג'","08:10:00","09:15:00",{"$f":"ROW()-ROW(רשימת_שיעורים[[#Headers],[ייחודי]])","v":7}]
[null,"אלגברה","MTH-113","שישי","בניין ג'","08:10:00","09:15:00",{"$f":"ROW()-ROW(רשימת_שיעורים[[#Headers],[ייחודי]])","v":8}]